Workbook

Sheet LICENSE
A2: 99 | D2: GWZ_calculator | E2: =INDEX(TRADUZIONI!$A$2:$H$193,1,$A$5) -> Lingua
D3: vers.1.02 | E3: IT
A4: =INDEX(TRADUZIONI!$A$1:$R$149,1,A5) -> Italiano
A5: =MATCH($E$3,DATA!$B$3:$B$8,)+2 -> 3 | C5: GWZ CALCULATOR
A6: 1 | C6: =INDEX(TRADUZIONI_LICENSE!$A$2:$H$41,A6,$A$5) -> CONDIZIONI GENERALI CONTRATTO DI LICENZA D’USO PER IL FOGLIO DI CALCOLO "GWZ_CALCULATOR"
A10: 2 | C10: =INDEX(TRADUZIONI_LICENSE!$A$2:$H$41,A10,$A$5) -> 1. OGGETTO
A11: 3 | C11: =INDEX(TRADUZIONI_LICENSE!$A$2:$H$41,A11,$A$5) -> Con le presenti Condizioni Generali (o “Contratto”), ROTHO BLAAS SRL, con sede in I-39040 Cortaccia (BZ), Via dell’Adige 2/1 (d’ora in avanti “RB”) concede all’utente il diritto non esclusivo e revocabile di utilizzare, a titolo gratuito, il foglio di calcolo (d’ora in avanti “CALC”) alle condizioni di seguito indicate e per la durata del presente Contratto. Il presente contratto regola pertanto il rapporto tra l’utente e RB relativamente all’utilizzo di detto foglio di calcolo. Nel momento in cui l’utente scarica e utilizza CALC, lo stesso accetta il presente Contratto e le condizioni riportate. CALC permette all’utente di effettuare calcoli statici esclusivamente per i prodotti e materiali indicati in ciascuna sezione dello stesso. Il presente Contratto vieta espressamente l’uso di CALC per la realizzazione di prodotti che non sono indicati. Nessuna garanzia sulla conformità legale ed al progetto dei calcoli è in ogni caso fornita da RB, che intende fornire esclusivamente uno strumento di calcolo indicativo quale servizio tecnico-commerciale nell’ambito dell’attività di vendita.
A12: 4 | C12: =INDEX(TRADUZIONI_LICENSE!$A$2:$H$41,A12,$A$5) -> 2. RIFERIMENTI TECNICO-NORMATIVI
A13: 144 | C13: =CHAR(10)&INDEX(TRADUZIONI!$A$2:$H$193,A13,$A$5)&" "&INDEX(TRADUZIONI!$A$2:$H$193,A13+1,$A$5) -> RB ha svolto le verifiche secondo il metodo degli Stati Limite in accordo EN 1995-1-1 Eurocodice 5-Progettazione delle strutture di legno. Per i valori di resistenza meccanica e per la geometria delle viti si è fatto riferimento a quanto riportato in ETA-12/0471.
A14: 6 | C14: =INDEX(TRADUZIONI_LICENSE!$A$2:$H$41,A14,$A$5) -> 3. DIRITTI E OBBLIGHI DI RB
A15: 7 | C15: =INDEX(TRADUZIONI_LICENSE!$A$2:$H$41,A15,$A$5) -> RB: a) mette a disposizione dell’Utente CALC gratuitamente, così com’è; b) non fornisce all’utente alcun supporto tecnico per l’utilizzo di CALC; c) non garantisce la conformità di CALC alla normativa vigente né al progetto dei calcoli effettuati tramite lo stesso. In particolare, in seguito alla modifica delle disposizioni di pertinenza quali, per es. norme, omologazioni, ecc. il foglio di calcolo potrebbe diventare, in parte o per intero, non valido. d) pur riservandosi il diritto di aggiornare, rivedere e sviluppare CALC, non assume alcun obbligo nei confronti dell’utente di verificare, correggere, completare o aggiornare il foglio di calcolo e/o rendere disponibili allo stesso gli aggiornamenti effettuati.
A16: 8 | C16: =INDEX(TRADUZIONI_LICENSE!$A$2:$H$41,A16,$A$5) -> 4. DIRITTI E OBBLIGHI DELL’UTENTE
A17: 9 | C17: =INDEX(TRADUZIONI_LICENSE!$A$2:$H$41,A17,$A$5) -> L’Utente dichiara di utilizzare il foglio di calcolo in qualità di professionista escludendosi qualsiasi uso come consumatore, e di rispettare sempre i seguenti obblighi e divieti: a) l’obbligo e la responsabilità di verificare che CALC soddisfi i propri bisogni specifici e sia compatibile con i propri hardware-software-sistemi; b) l’obbligo di verificare, ad ogni utilizzo, la conformità dei calcoli effettuati tramite CALC alla normativa vigente ed al progetto; c) l’obbligo di verificare la conformità legale dei calcoli effettuati tramite il Software; d) L’obbligo di utilizzare l'ultima versione di CALC resa disponibile dal contatto di riferimento RB, controllando ad ogni utilizzo eventuali aggiornamenti; e) il divieto di utilizzare CALC per prodotti non indicati in ciascuna sezione di calcolo; f) l’obbligo di utilizzare software antivirus aggiornati e conformi allo standard industriale vigente; g) l’obbligo di non cedere la licenza d’uso di CALC a terzi e/o in altro modo trasferire, dare in pegno o in locazione, affittare o condividere con altri o concedere in sublicenza i diritti di utilizzo del foglio di calcolo; h) il divieto di modificare o variare in alcun modo CALC, anche tramite terzi. L'utente si impegna a chiedere al referente di RB l'ultima versione di CALC.
A18: 10 | C18: =INDEX(TRADUZIONI_LICENSE!$A$2:$H$41,A18,$A$5) -> 5. DIRITTI D’AUTORE
A19: 11 | C19: =INDEX(TRADUZIONI_LICENSE!$A$2:$H$41,A19,$A$5) -> I diritti d’autore sulle formulazioni di cui nel foglio di calcolo e tutti i diritti di proprietà intellettuale ed industriale sottesi a queste (quali in via puramente esemplificativa e non esaustiva: marchi, brevetti, segreti commerciali, know how, informazioni riservate) sono e restano di proprietà esclusiva di RB. Il presente accordo non conferisce all’utente alcuno dei diritti di cui sopra.
A20: 12 | C20: =INDEX(TRADUZIONI_LICENSE!$A$2:$H$41,A20,$A$5) -> 6. DURATA, RECESSO E CESSAZIONE
A21: 13 | C21: =INDEX(TRADUZIONI_LICENSE!$A$2:$H$41,A21,$A$5) -> Le presenti condizioni generali e, di conseguenza, la licenza d’uso del foglio di calcolo, sono validi dal momento del download dello stesso sino alla cessazione del suo utilizzo. L’utente può recedere in qualsiasi momento dal presente Contratto eliminando CALC e tutte le eventuali copie dai suoi sistemi. RB può recedere dal presente Contratto e disattivare il servizio in caso di infrazione di una qualsiasi delle disposizioni che regolano la licenza d’uso. Nel caso in cui RB comunichi la cessazione, l’utente dovrà provvedere ad eliminare il foglio di calcolo ed eventuali sue copie dai suoi sistemi.
A22: 14 | C22: =INDEX(TRADUZIONI_LICENSE!$A$2:$H$41,A22,$A$5) -> 7. RESPONSABILITÀ
A23: 15 | C23: =INDEX(TRADUZIONI_LICENSE!$A$2:$H$41,A23,$A$5) -> L’utente è l’unico responsabile per l’uso di CALC, inclusi, ma non solo, tutti i calcoli, i tabulati, i dati di esportazioni con esso svolti e/o per gli errori di inserimento, per la protezione dei file di dati e per la manutenzione ed in generale per qualsiasi uso effettuato del foglio di calcolo. RB non garantisce e in nessun caso potrà essere ritenuta responsabile in merito a danni, perdite e costi o altre conseguenze, a qualsiasi titolo (garanzia per vizi, garanzia per malfunzionamento, responsabilità del prodotto o di legge, etc.) derivanti da: • utilizzo di CALC, calcoli effettuati, conformità alla normativa vigente, al progetto o altre esigenze dell’Utente; • compatibilità hardware e software, virus, malfunzionamenti, difetti, errori o lacune; • mancato aggiornamento del foglio di calcolo e/o interruzione della messa a disposizione del foglio di calcolo e/o cessazione del contratto a qualsiasi titolo; • violazione di diritti di proprietà intellettuale di terzi. L’utente conferma di aver compreso e accettato le esclusioni di responsabilità e le limitazioni di responsabilità e reclamo del presente Contratto. L’utente conferma inoltre che il foglio di calcolo è disponibile gratuitamente, che le esclusioni e le limitazioni sono elementi fondamentali del presente Contratto e che RB non rende disponibile il proprio foglio di calcolo all’utente nel caso in cui le esclusioni o le limitazioni vengono eliminate o modificate a favore dell’utente stesso.
A24: 16 | C24: =INDEX(TRADUZIONI_LICENSE!$A$2:$H$41,A24,$A$5) -> 8. RIMBORSO
A25: 17 | C25: =INDEX(TRADUZIONI_LICENSE!$A$2:$H$41,A25,$A$5) -> L'utente accetta di tenere indenne e risarcire RB, le sue società affiliate e il suo o i suoi funzionari, direttori, dipendenti, successori, e incaricati (ciascuno singolarmente, "Beneficiario", collettivamente, i "Beneficiari") per i costi sostenuti in relazione a pretese avanzate da terzi per danni o perdite derivanti dall’utilizzo del foglio di calcolo da parte dell‘utente (compresi, ma non solo, onorari e spese di gestione sostenute da RB).
A26: 18 | C26: =INDEX(TRADUZIONI_LICENSE!$A$2:$H$41,A26,$A$5) -> 9. VARIE
A27: 19 | C27: =INDEX(TRADUZIONI_LICENSE!$A$2:$H$41,A27,$A$5) -> Le presenti condizioni generali costituiscono l’intero accordo tra RB e l’utente per quanto riguarda la materia in oggetto e sostituiscono tutti gli accordi precedenti, orali o scritti che siano, nonché eventuali intese tra RB e l’utente.
A28: 20 | C28: =INDEX(TRADUZIONI_LICENSE!$A$2:$H$41,A28,$A$5) -> 10. LINGUA
A29: 21 | C29: =INDEX(TRADUZIONI_LICENSE!$A$2:$H$41,A29,$A$5) -> In caso di divergenze tra versioni delle presenti condizioni nelle varie lingue, il testo italiano è vincolante e prevalente rispetto alle traduzioni.
A30: 22 | C30: =INDEX(TRADUZIONI_LICENSE!$A$2:$H$41,A30,$A$5) -> 11. DIRITTO APPLICABILE E FORO COMPETENTE
A31: 23 | C31: =INDEX(TRADUZIONI_LICENSE!$A$2:$H$41,A31,$A$5) -> Il presente accordo e ogni rapporto tra le parti è regolato esclusivamente dal diritto italiano. Ogni controversia che dovesse insorgere tra le parti in relazione al presente accordo, che le stesse non siano in grado di risolvere amichevolmente, sarà di esclusiva competenza del foro di Bolzano.
A32: 24 | C32: =INDEX(TRADUZIONI_LICENSE!$A$2:$H$41,A32,$A$5) -> 12. PRIVACY
A33: 25 | C33: =INDEX(TRADUZIONI_LICENSE!$A$2:$H$41,A33,$A$5) -> Si rinvia alla privacy policy consultabile al link:
A34: 26 | C34: =HYPERLINK(INDEX(TRADUZIONI_LICENSE!$A$2:$H$41,A34,$A$5)) -> https://www.holztechnic.com/privacy-policy
C35: =HYPERLINK(C34) -> https://www.holztechnic.com/privacy-policy
A39: 27 | C39: =INDEX(TRADUZIONI_LICENSE!$A$2:$H$41,A39,$A$5) -> ACCETTO

Sheet REPORT
F2: =UPPER(INDEX(TRADUZIONI!$A$2:$H$298,1,REPORT!$A$4)) -> LINGUA
A3: =INDEX(TRADUZIONI!$A$1:$H$222,1,REPORT!$A$4) -> Italiano | F3: =LICENSE!E3 -> IT | G3: =LICENSE!D2 -> GWZ_calculator
A4: =MATCH($F$3,DATA!$B$3:$B$8,)+2 -> 3 | G4: =LICENSE!D3 -> vers.1.02
B6: 2 | D6: =INDEX(TRADUZIONI!$A$2:$H$193,REPORT!B6,REPORT!$A$4) -> GIUNZIONE TRAVE PRINCIPALE - TRAVE SECONDARIA CON CONNETTORI INCROCIATI GWZ
B9: 3 | F9: =INDEX(TRADUZIONI!$A$2:$H$193,REPORT!B9,REPORT!$A$4) -> Tecnico Commerciale: | G9: xxx
B10: 4 | F10: =INDEX(TRADUZIONI!$A$2:$H$193,REPORT!B10,REPORT!$A$4) -> Progetto: | G10: yyy
B11: 5 | F11: =INDEX(TRADUZIONI!$A$2:$H$193,REPORT!B11,REPORT!$A$4) -> Giunzione n°: | G11: zzz
B13: 6 | F13: =INDEX(TRADUZIONI!$A$2:$H$193,REPORT!B13,REPORT!$A$4) -> Note: | G13: …
B15: 7 | F15: =INDEX(TRADUZIONI!$A$2:$H$193,REPORT!B15,REPORT!$A$4) -> Data: | G15: =TEXT(TODAY(),"GG/MM/AAAA") -> 07/09/2022
B18: 8 | E18: =INDEX(TRADUZIONI!$A$2:$H$193,B18,REPORT!$A$4) -> STAMPA RELAZIONE | G18: =INDEX(TRADUZIONI!$A$2:$H$193,B19,REPORT!$A$4) -> STAMPA DISPOSIZIONE
B19: 9
A23: Indici | B23: 11 | D23: ="1. "&INDEX(TRADUZIONI!$A$2:$H$193,REPORT!B23,REPORT!$A$4) -> 1. DATI DI PROGETTO E CARATTERISTICHE DEI MATERIALI
A25: 2 | B25: 13 | D25: =INDEX(TRADUZIONI!$A$2:$H$193,REPORT!B25,REPORT!$A$4) -> Norma di calcolo | F25: =" "&INDEX(TRADUZIONI!$A$2:$H$193,REPORT!B25,REPORT!$A$4) -> Norma di calcolo
A26: 1 | B26: 14 | D26: =INDEX(TRADUZIONI!$A$2:$H$193,REPORT!B26,REPORT!$A$4) -> Classe di servizio
A27: 4 | B27: 15 | D27: =INDEX(TRADUZIONI!$A$2:$H$193,REPORT!B27,REPORT!$A$4) -> Classe di durata del carico variabile
B29: 98 | E29: =INDEX(TRADUZIONI!$A$2:$H$248,B29,REPORT!$A$4) -> sezione | G29: =INDEX(TRADUZIONI!$A$2:$H$248,B29-1,REPORT!$A$4) -> pianta
B30: 98
B31: 17 | D31: =" 1.1 "&INDEX(TRADUZIONI!$A$2:$H$193,REPORT!B31,REPORT!$A$4) -> 1.1 DATI GEOMETRICI | F31: =IF(A26=3,UPPER(INDEX(TRADUZIONI!$A$2:$H$213,202,REPORT!$A$4))," ") -> 
B32: 18 | D32: =INDEX(TRADUZIONI!$A$2:$H$193,REPORT!B32,REPORT!$A$4) -> Trave principale
B33: 24 | D33: =INDEX(TRADUZIONI!$A$2:$H$193,REPORT!B33,REPORT!$A$4) -> Base della trave | F33: B HT | G33: 200 | H33: mm
B34: 25 | D34: =INDEX(TRADUZIONI!$A$2:$H$193,REPORT!B34,REPORT!$A$4) -> Altezza della trave | F34: H HT | G34: 400 | H34: mm
A36: 5 | B36: 26 | D36: =INDEX(TRADUZIONI!$A$2:$H$193,REPORT!B36,REPORT!$A$4)&" - "&INDEX(TRADUZIONI!$A$2:$H$193,REPORT!B37,REPORT!$A$4) -> Legno - Classe di resistenza
A37: FALSE | B37: 27 | H37: =INDEX(TRADUZIONI!$A$2:$H$203,B44,REPORT!$A$4) -> produzioni soggette a controllo continuativo (COV <15%)
B38: 19 | D38: =INDEX(TRADUZIONI!$A$2:$H$193,REPORT!B38,REPORT!$A$4) -> Trave secondaria
B39: 24 | D39: =INDEX(TRADUZIONI!$A$2:$H$193,REPORT!B39,REPORT!$A$4) -> Base della trave | F39: b NT | G39: 120 | H39: mm
B40: 25 | D40: =INDEX(TRADUZIONI!$A$2:$H$193,REPORT!B40,REPORT!$A$4) -> Altezza della trave | F40: h NT | G40: 200 | H40: mm
B41: 22 | D41: =INDEX(TRADUZIONI!$A$2:$H$193,REPORT!B41,REPORT!$A$4) -> Inclinazione (angolo nel piano verticale) | F41: β | G41: 0 | H41: °
A43: 5 | D43: =D36 -> Legno - Classe di resistenza
A44: FALSE | B44: 29 | H44: =INDEX(TRADUZIONI!$A$2:$H$203,B44,REPORT!$A$4) -> produzioni soggette a controllo continuativo (COV <15%)
B46: 31 | D46: ="1.2 "&INDEX(TRADUZIONI!$A$2:$H$193,REPORT!B46,REPORT!$A$4) -> 1.2 SOLLECITAZIONI
A48: 2 | B48: 32 | D48: =INDEX(TRADUZIONI!$A$2:$H$193,REPORT!B48,REPORT!$A$4) -> Taglio sollecitante | F48: F V,d | G48: 7 | H48: kN
A49: TRUE | B49: 62
B50: 54 | D50: ="1.3 "&INDEX(TRADUZIONI!$A$2:$H$193,REPORT!B50,REPORT!$A$4) -> 1.3 CONNETTORI
A51: 8 | B51: 55 | D51: =INDEX(TRADUZIONI!$A$2:$H$193,REPORT!B51,REPORT!$A$4) -> Tipo connettore | E51: =IF(A51>COUNTA(DATA!I3:I18)-COUNTIF(DATA!I3:I18,""),"! "&INDEX(TRADUZIONI!$A$2:$H$193,REPORT!B49,REPORT!$A$4)&" !","") ->  | G51: s
A52: 1 | B52: 56 | D52: =INDEX(TRADUZIONI!$A$2:$H$298,REPORT!B52,REPORT!$A$4) -> N° coppie
A53: =IF(A54=1,"INTERNE","ESTERNE") -> INTERNE | B53: 57 | D53: =INDEX(TRADUZIONI!$A$2:$H$193,REPORT!B53,REPORT!$A$4) -> Disposizione dei connettori | G53: =INDEX(TRADUZIONI!$A$2:$H$193,REPORT!B55,REPORT!$A$4) -> 45° (connettori incrociati)
A54: 1 | B54: 59 | D54: =INDEX(TRADUZIONI!$A$2:$H$193,REPORT!B54,REPORT!$A$4) -> Posizionamento connettori sulla trave
B55: 58
A57: =H57 -> 0.9099936412 | B57: 64 | D57: =D112&" ("&UPPER(INDEX(TRADUZIONI!$A$2:$H$193,REPORT!B57,REPORT!$A$4))&")" -> VERIFICA DELLA CONNESSIONE (RESISTENZA) | F57: =IF(A57<1,INDEX(TRADUZIONI!$A$2:$H$193,140,REPORT!$A$4),INDEX(TRADUZIONI!$A$2:$H$193,142,REPORT!$A$4)) -> VERIFICATO | H57: =H114 -> 0.9099936412
A58: =IF(OR(A133>1,A139>1,A146>1,A152>1,A158>1),11,0) -> 0 | B58: 65 | D58: =D112&" ("&UPPER(INDEX(TRADUZIONI!$A$2:$H$193,REPORT!B58,REPORT!$A$4))&")" -> VERIFICA DELLA CONNESSIONE (GEOMETRIA) | F58: =IF(A58<1,INDEX(TRADUZIONI!$A$2:$H$193,140,REPORT!$A$4),INDEX(TRADUZIONI!$A$2:$H$193,142,REPORT!$A$4)) -> VERIFICATO
B59: 66 | H59: =INDEX(TRADUZIONI!$A$2:$H$293,REPORT!B59,REPORT!$A$4) -> Per maggiori dettagli sulle verifiche si vedano i punti 2 e 3.
D60: =A165&G61&G64 -> GWZ8240
B61: 68 | D61: =INDEX(TRADUZIONI!$A$2:$H$193,REPORT!B61,REPORT!$A$4) -> Diametro nominale | F61: d1 | G61: =INDEX(DATA!C72:R72,REPORT!$A$51) -> 8 | H61: mm
B62: 69 | D62: =INDEX(TRADUZIONI!$A$2:$H$193,REPORT!B62,REPORT!$A$4) -> Diametro nocciolo | F62: d2 | G62: =INDEX(DATA!C75:R75,REPORT!$A$51) -> 5.2 | H62: mm
B63: 70 | D63: =INDEX(TRADUZIONI!$A$2:$H$193,REPORT!B63,REPORT!$A$4) -> Diametro testa | F63: dk | G63: =INDEX(DATA!C76:R76,REPORT!$A$51) -> 11 | H63: mm
B64: 71 | D64: =INDEX(TRADUZIONI!$A$2:$H$193,REPORT!B64,REPORT!$A$4) -> Lunghezza | F64: L | G64: =INDEX(DATA!C73:R73,REPORT!$A$51) -> 240 | H64: mm
B65: 72 | D65: =INDEX(TRADUZIONI!$A$2:$H$193,REPORT!B65,REPORT!$A$4) -> Lunghezza filetto | F65: sg | G65: =INDEX(DATA!C74:R74,REPORT!$A$51) -> 230 | H65: mm
B66: 73 | D66: =INDEX(TRADUZIONI!$A$2:$H$193,REPORT!B66,REPORT!$A$4) -> Parametro caratteristico estrazione | F66: fax,k | G66: =INDEX(DATA!C77:R77,REPORT!$A$51) -> 11 | H66: N/mm2
B67: 74 | D67: =INDEX(TRADUZIONI!$A$2:$H$193,REPORT!B67,REPORT!$A$4) -> Densità associata | F67: ρa,ax | G67: =INDEX(DATA!C78:R78,REPORT!$A$51) -> 350 | H67: Kg/m3
B68: 75 | D68: =INDEX(TRADUZIONI!$A$2:$H$193,REPORT!B68,REPORT!$A$4) -> Resistenza caratteristica a trazione | F68: ftens,k | G68: =INDEX(DATA!C79:R79,REPORT!$A$51) -> 21 | H68: kN
A69: new | B69: 76 | D69: =INDEX(TRADUZIONI!$A$2:$H$193,REPORT!B69,REPORT!$A$4) -> Resistenza caratteristica a snervamento | F69: fy,k | G69: =INDEX(DATA!C80:R80,REPORT!$A$51) -> 1000 | H69: N/mm2
B70: 77 | D70: ="2. "&INDEX(TRADUZIONI!$A$2:$H$193,REPORT!B70,REPORT!$A$4) -> 2. VERIFICHE DI RESISTENZA
B71: 26 | D71: ="2.1 "&UPPER(INDEX(TRADUZIONI!$A$2:$H$193,REPORT!B71,REPORT!$A$4)) -> 2.1 LEGNO
B72: 20 | D72: =IF(A36=15,"CLICK HERE"," ") ->  | F72: =INDEX(TRADUZIONI!$A$2:$H$193,REPORT!B72,REPORT!$A$4) -> Trave principale | G72: =INDEX(TRADUZIONI!$A$2:$H$193,REPORT!B72+1,REPORT!$A$4) -> Trave secondaria
F73: =INDEX(DATA!$D$22:$Q$22,REPORT!A36) -> GL 24h | G73: =INDEX(DATA!$D$22:$Q$22,REPORT!A43) -> GL 24h
F74: =INDEX(DATA!D23:Q23,REPORT!$A$36) -> (EN 14080:2013) | G74: =INDEX(DATA!D23:Q23,REPORT!$A$43) -> (EN 14080:2013)
B75: 40 | D75: =INDEX(TRADUZIONI!$A$2:$H$193,REPORT!$B$75,REPORT!$A$4) -> Taglio | E75: fv,g,k | F75: =INDEX(DATA!D35:Q35,REPORT!$A$36) -> 3.5 | G75: =INDEX(DATA!D35:Q35,REPORT!$A$43) -> 3.5 | H75: N/mm2
B76: 41 | D76: =INDEX(TRADUZIONI!$A$2:$H$193,REPORT!$B$76,REPORT!$A$4) -> Modulo elastico medio parallelo alle fibre | E76: E0,g,mean | F76: =INDEX(DATA!D25:Q25,REPORT!$A$36) -> 11500 | G76: =INDEX(DATA!D25:Q25,REPORT!$A$43) -> 11500 | H76: N/mm2
B77: 42 | D77: =INDEX(TRADUZIONI!$A$2:$H$193,REPORT!$B$77,REPORT!$A$4) -> Modulo elastico caratteristico parallelo alle fibre | E77: E0,g,05 | F77: =INDEX(DATA!D26:Q26,REPORT!$A$36) -> 9600 | G77: =INDEX(DATA!D26:Q26,REPORT!$A$43) -> 9600 | H77: N/mm2
B78: 43 | D78: =INDEX(TRADUZIONI!$A$2:$H$193,REPORT!$B$78,REPORT!$A$4) -> Modulo elastico medio perpendicolare alle fibre | E78: E90,g,mean | F78: =INDEX(DATA!D27:Q27,REPORT!$A$36) -> 300 | G78: =INDEX(DATA!D27:Q27,REPORT!$A$43) -> 300 | H78: N/mm2
B79: 44 | D79: =INDEX(TRADUZIONI!$A$2:$H$193,REPORT!$B$79,REPORT!$A$4) -> Modulo di taglio medio | E79: Gg,mean | F79: =INDEX(DATA!D28:Q28,REPORT!$A$36) -> 650 | G79: =INDEX(DATA!D28:Q28,REPORT!$A$43) -> 650 | H79: N/mm2
B80: 45 | D80: =INDEX(TRADUZIONI!$A$2:$H$193,REPORT!$B$80,REPORT!$A$4) -> Massa volumica caratteristica | E80: ρg,k | F80: =INDEX(DATA!D36:Q36,REPORT!$A$36) -> 385 | G80: =INDEX(DATA!D36:Q36,REPORT!$A$43) -> 385 | H80: Kg/m3
B81: 47 | D81: =INDEX(TRADUZIONI!$A$2:$H$193,REPORT!B81,REPORT!$A$4) -> Coefficiente parziale di sicurezza - legno | E81: γm, timber | F81: =IF(A25=1,IF($A$37=FALSE,INDEX(DATA!B41:B54,REPORT!$A$36),INDEX(DATA!C41:C54,REPORT!$A$36)),IF($A$37=FALSE,INDEX(DATA!D41:D54,REPORT!$A$36),INDEX(DATA!E41:E54,REPORT!$A$36))) -> 1.45 | G81: =IF(A25=1,IF($A$44=FALSE,INDEX(DATA!B41:B54,REPORT!$A$43),INDEX(DATA!C41:C54,REPORT!$A$43)),IF($A$44=FALSE,INDEX(DATA!D41:D54,REPORT!$A$43),INDEX(DATA!E41:E54,REPORT!$A$43))) -> 1.45
B82: 48 | D82: =INDEX(TRADUZIONI!$A$2:$H$193,REPORT!B82,REPORT!$A$4) -> Coefficiente parziale di sicurezza - connessione | E82: γm, connection | F82: =IF($A$25=2,IF(A37=FALSE,DATA!D55,DATA!E55),DATA!B55) -> 1.5 | G82: =IF($A$25=2,IF(A44=FALSE,DATA!D55,DATA!E55),DATA!B55) -> 1.5
B83: 52 | D83: =INDEX(TRADUZIONI!$A$2:$H$193,REPORT!B83,REPORT!$A$4) -> Coefficiente di fessurazione per la resistenza a taglio | E83: kcr | F83: - | G83: =IF(A49=FALSE,1,INDEX(DATA!F41:F54,REPORT!$A$43)) -> 0.67
B86: 50 | D86: =INDEX(TRADUZIONI!$A$2:$H$193,REPORT!B86,REPORT!$A$4) -> Coefficiente di correzione per la durata del carico e per l'umidità | F86: kmod | G86: =IF(A26=1,INDEX(DATA!B63:B67,$A$27),IF(A26=2,INDEX(DATA!C63:C67,$A$27),INDEX(DATA!D63:D67,$A$27))) -> 0.9
A87: new | B87: 53 | D87: =INDEX(TRADUZIONI!$A$2:$H$193,REPORT!$B$87,REPORT!$A$4) -> Coefficiente parziale di sicurezza - acciaio | F87: γm, 1 | G87: =IF($A$25=2,DATA!D56,DATA!B56) -> 1.05
A88: new | B88: 53 | D88: =INDEX(TRADUZIONI!$A$2:$H$193,REPORT!$B$87,REPORT!$A$4) -> Coefficiente parziale di sicurezza - acciaio | F88: γm, 2 | G88: =IF($A$25=2,DATA!D57,DATA!B57) -> 1.25
B90: 78 | D90: =UPPER("2.2 "&INDEX(TRADUZIONI!$A$2:$H$193,REPORT!B90,REPORT!$A$4)) -> 2.2 CONNESSIONE
B91: 32 | D91: =INDEX(TRADUZIONI!$A$2:$H$193,REPORT!B91,REPORT!$A$4) -> Taglio sollecitante | F91: F V,d | G91: =G48 -> 7 | H91: kN | M91: resistenza caratteristica lungo la vite | N91: resistenza caratt. sulla verticale | O91: resistenza di progetto sulla verticale
B93: 18 | D93: =INDEX(TRADUZIONI!$A$2:$H$193,REPORT!B93,REPORT!$A$4) -> Trave principale
B94: 72 | D94: =INDEX(TRADUZIONI!$A$2:$H$193,REPORT!B94,REPORT!$A$4) -> Lunghezza filetto | F94: sg HT | G94: =INDEX(DATA!$D$95:E$110,$A$51,1) -> 105 | H94: mm
B95: 79 | D95: =INDEX(TRADUZIONI!$A$2:$H$193,REPORT!B95,REPORT!$A$4) -> Angolo vite / fibre | F95: α HT | G95: 90 | H95: °
B96: 80 | D96: =INDEX(TRADUZIONI!$A$2:$H$193,REPORT!B96,REPORT!$A$4) -> Resistenza caratteristica ad estrazione della vite | F96: R ax,α,k | G96: =MIN(G94*$G$66*(F80/$G$67)^0.8*$G$61/(1.2*COS(RADIANS(G95))^2+SIN(RADIANS(G95))^2)/1000,G68) -> 9.972088391 | H96: kN | K96: Resistenza caratteristica ad estrazione della vite | L96: R ax,α,k | M96: =G96 -> 9.972088391 | N96: =M96/SQRT(2)*2*$G$108 -> 14.10266265 | O96: =N96*G86/F82 -> 8.461597588
A97: new | B97: 75 | D97: =INDEX(TRADUZIONI!$A$2:$H$193,REPORT!B97,REPORT!$A$4) -> Resistenza caratteristica a trazione | F97: Rtens,k | G97: =$G$68 -> 21 | H97: kN | K97: Resistenza caratteristica a trazione della vite | L97: R TENS,k | M97: =G68 -> 21 | N97: =M97/SQRT(2)*2*$G$108 -> 29.69848481 | O97: =N97/$G$88 -> 23.75878785 | Q97: N pl,k | R97: Is | S97: ch HT | T97: N ki,k | U97: ‾λ‾ k | V97: k | W97: k c | X97: F ki,k | Y97: V 2 R,k
A98: new | B98: 106 | D98: =INDEX(TRADUZIONI!$A$2:$H$193,REPORT!B98,REPORT!$A$4) -> Resistenza caratteristica ad instabilità | F98: Rki,k | G98: =X98 -> 13.28300377 | H98: kN | K98: Resistenza caratteristica ad instabilità | L98: R ki,k | M98: =X98 -> 13.28300377 | N98: =M98/SQRT(2)*2*$G$108 -> 18.78500408 | O98: =N98/$G$87 -> 17.89048007 | Q98: =PI()*G62^2/4*G69 -> 21237.16634 | R98: =PI()/64*G62^4 -> 35.89081111 | S98: =(0.19+0.012*G61)*F80*(G95/180+0.5) -> 110.11 | T98: =SQRT(210000*R98*S98) -> 28808.10328 | U98: =SQRT(Q98/T98) -> 0.8586001335 | V98: =0.5*(1+0.49*(U98-0.2)+U98^2) -> 1.029954127 | W98: =IF(U98<=0.2,1,1/(V98+SQRT(V98^2-U98^2))) -> 0.6254602688 | X98: =W98*Q98/1000 -> 13.28300377 | Y98: =2*X98*COS($C$37*PI()/180) -> 26.56600753
B100: 19 | D100: =INDEX(TRADUZIONI!$A$2:$H$193,REPORT!B100,REPORT!$A$4) -> Trave secondaria
B101: 72 | D101: =INDEX(TRADUZIONI!$A$2:$H$193,REPORT!B101,REPORT!$A$4) -> Lunghezza filetto | F101: sg NT | G101: =INDEX(DATA!$D$95:E$110,$A$51,2) -> 105 | H101: mm
B102: 79 | D102: =INDEX(TRADUZIONI!$A$2:$H$193,REPORT!B102,REPORT!$A$4) -> Angolo vite / fibre | F102: α NT,MIN | G102: =45-G41 -> 45 | H102: °
B103: 80 | D103: =INDEX(TRADUZIONI!$A$2:$H$193,REPORT!B103,REPORT!$A$4) -> Resistenza caratteristica ad estrazione della vite | F103: R ax,α,k | G103: =MIN(G101*$G$66*(G80/$G$67)^0.8*$G$61/(1.2*COS(RADIANS(G102))^2+SIN(RADIANS(G102))^2)/1000,G68) -> 9.065534901 | H103: kN | K103: Resistenza caratteristica ad estrazione della vite | L103: R ax,α,k | M103: =G103 -> 9.065534901 | N103: =M103/SQRT(2)*2*$G$108 -> 12.82060241 | O103: =N103*G86/G82 -> 7.692361444
A104: new | B104: 75 | D104: =INDEX(TRADUZIONI!$A$2:$H$193,REPORT!B104,REPORT!$A$4) -> Resistenza caratteristica a trazione | F104: Rtens,k | G104: =$G$68 -> 21 | H104: kN | K104: Resistenza caratteristica a trazione della vite | L104: R TENS,k | M104: =G68 -> 21 | N104: =M104/SQRT(2)*2*$G$108 -> 29.69848481 | O104: =N104/$G$88 -> 23.75878785 | Q104: N pl,k | R104: Is | S104: ch NT | T104: N ki,k | U104: ‾λ‾ k | V104: k | W104: k c | X104: F ki,k | Y104: V 2 R,k
A105: new | B105: 106 | D105: =INDEX(TRADUZIONI!$A$2:$H$193,REPORT!B105,REPORT!$A$4) -> Resistenza caratteristica ad instabilità | F105: Rki,k | G105: =X105 -> 12.44482703 | H105: kN | K105: Resistenza caratteristica ad instabilità | L105: R ki,k | M105: =X105 -> 12.44482703 | N105: =M105/SQRT(2)*2*$G$108 -> 17.59964317 | O105: =N105/$G$87 -> 16.76156492 | Q105: =PI()*G62^2/4*G69 -> 21237.16634 | R105: =PI()/64*G62^4 -> 35.89081111 | S105: =(0.19+0.012*G61)*G80*(G102/180+0.5) -> 82.5825 | T105: =SQRT(210000*R105*S105) -> 24948.54927 | U105: =SQRT(Q105/T105) -> 0.9226258869 | V105: =0.5*(1+0.49*(U105-0.2)+U105^2) -> 1.102662606 | W105: =IF(U105<=0.2,1,1/(V105+SQRT(V105^2-U105^2))) -> 0.5859928219 | X105: =W105*Q105/1000 -> 12.44482703 | Y105: =2*X105*COS($C$37*PI()/180) -> 24.88965406
B108: 81 | D108: =INDEX(TRADUZIONI!$A$2:$H$193,REPORT!B108,REPORT!$A$4) -> Numero efficace | F108: n ef | G108: =A52^0.9 -> 1 | H108: kN
B109: 82 | D109: =INDEX(TRADUZIONI!$A$2:$H$193,REPORT!B109,REPORT!$A$4) -> Resistenza caratteristica a taglio verticale | F109: R V k | G109: =MIN(N96:N106) -> 12.82060241 | H109: kN
B110: 83 | D110: =INDEX(TRADUZIONI!$A$2:$H$193,REPORT!B110,REPORT!$A$4) -> Resistenza di progetto della connessione | F110: R V,d | G110: =MIN(O96:O106) -> 7.692361444 | H110: kN | N110: =IF(OR(O110=O96,O110=O103),"estrazione","acciaio") -> estrazione | O110: =MIN(O96:O106) -> 7.692361444
B112: 63 | D112: =UPPER(INDEX(TRADUZIONI!$A$2:$H$193,REPORT!B112,REPORT!$A$4)) -> VERIFICA DELLA CONNESSIONE
D113: V s,d ≤ R v,d | F113: =G91 -> 7 | G113: ≤ | H113: =G110 -> 7.692361444
A114: =F113/H113 -> 0.9099936412 | F114: =IF(A114<1,INDEX(TRADUZIONI!$A$2:$H$193,140,REPORT!$A$4),INDEX(TRADUZIONI!$A$2:$H$193,142,REPORT!$A$4)) -> VERIFICATO | H114: =F113/H113 -> 0.9099936412
A115: =DATA!E85/G102 -> 0.6666666667 | B115: 92 | D115: =IF(A115>1,"! "&INDEX(TRADUZIONI!$A$2:$H$293,REPORT!B115,REPORT!$A$4)&" !","") -> 
B117: 87 | D117: ="2.3 "&INDEX(TRADUZIONI!$A$2:$H$193,REPORT!B117,REPORT!$A$4)&" - "&UPPER(D100) -> 2.3 TAGLIO - TRAVE SECONDARIA
B118: 32 | D118: =INDEX(TRADUZIONI!$A$2:$H$193,REPORT!B118,REPORT!$A$4) -> Taglio sollecitante | F118: F V,d | G118: =G48 -> 7 | H118: kN
B120: 84 | D120: =UPPER(INDEX(TRADUZIONI!$A$2:$H$193,REPORT!B120,REPORT!$A$4)) -> VERIFICA A TAGLIO
B121: 85 | D121: =INDEX(TRADUZIONI!$A$2:$H$193,REPORT!B121,REPORT!$A$4) -> Tensione massima a taglio sulla trave secondaria | F121: τ L,max | G121: =1.5*G118*1000/(G83*G39*G40) -> 0.6529850746 | H121: N/mm2
B122: 86 | D122: =INDEX(TRADUZIONI!$A$2:$H$193,REPORT!B122,REPORT!$A$4) -> Resistenza di progetto a taglio | F122: f v,d | G122: =G75*G86/G81 -> 2.172413793 | H122: N/mm2
D124: τL,max ≤ fv,d | F124: =G121 -> 0.6529850746 | G124: ≤ | H124: =G122 -> 2.172413793
A125: =F124/H124 -> 0.3005804312 | D125: =IF(A125<1,INDEX(TRADUZIONI!$A$2:$H$193,140,REPORT!$A$4),INDEX(TRADUZIONI!$A$2:$H$193,142,REPORT!$A$4)) -> VERIFICATO | H125: =F124/H124 -> 0.3005804312
B127: 88 | D127: ="3. "&INDEX(TRADUZIONI!$A$2:$H$193,REPORT!B127,REPORT!$A$4) -> 3. VERIFICHE GEOMETRICHE
B128: 18 | D128: =UPPER("3.1 "&INDEX(TRADUZIONI!$A$2:$H$193,REPORT!B128,REPORT!$A$4)) -> 3.1 TRAVE PRINCIPALE
B129: 24 | D129: =INDEX(TRADUZIONI!$A$2:$H$193,REPORT!B129,REPORT!$A$4) -> Base della trave | F129: B HT | G129: =G33 -> 200 | H129: mm
B130: 89 | D130: =INDEX(TRADUZIONI!$A$2:$H$193,REPORT!B129,REPORT!$A$4)&" - "&INDEX(TRADUZIONI!$A$2:$H$193,REPORT!B130,REPORT!$A$4) -> Base della trave - Dimensione minima | F130: B HT,min | G130: =IF(G41=0,CEILING(DATA!I123,1),CEILING(DATA!O123,1)) -> 101 | H130: mm
D132: B HT ≥ B HT,min | F132: =G129 -> 200 | G132: ≥ | H132: =G130 -> 101
A133: =H132/F132 -> 0.505 | B133: 90 | D133: =IF(A133>1,"! "&INDEX(TRADUZIONI!$A$2:$H$293,REPORT!B133,REPORT!$A$4)&" !","") ->  | F133: =IF(A133<=1,INDEX(TRADUZIONI!$A$2:$H$193,140,REPORT!$A$4),INDEX(TRADUZIONI!$A$2:$H$193,142,REPORT!$A$4)) -> VERIFICATO
B135: 25 | D135: =INDEX(TRADUZIONI!$A$2:$H$193,REPORT!B135,REPORT!$A$4) -> Altezza della trave | F135: H HT | G135: =G34 -> 400 | H135: mm
B136: 89 | D136: =INDEX(TRADUZIONI!$A$2:$H$193,REPORT!B135,REPORT!$A$4)&" - "&INDEX(TRADUZIONI!$A$2:$H$193,REPORT!B136,REPORT!$A$4) -> Altezza della trave - Dimensione minima | F136: H HT,min | G136: =IF(G41=0,CEILING(DATA!J123,1),CEILING(DATA!P123,1)) -> 190 | H136: mm
D138: H HT ≥ H HT,min | F138: =G135 -> 400 | G138: ≥ | H138: =G136 -> 190
A139: =H138/F138 -> 0.475 | B139: 91 | D139: =IF(A139>1,"! "&INDEX(TRADUZIONI!$A$2:$H$293,REPORT!B139,REPORT!$A$4)&" !","") ->  | F139: =IF(A139<=1,INDEX(TRADUZIONI!$A$2:$H$193,140,REPORT!$A$4),INDEX(TRADUZIONI!$A$2:$H$193,142,REPORT!$A$4)) -> VERIFICATO
B141: 19 | D141: =UPPER("3.2 "&INDEX(TRADUZIONI!$A$2:$H$193,REPORT!B141,REPORT!$A$4)) -> 3.2 TRAVE SECONDARIA
B142: 24 | D142: =INDEX(TRADUZIONI!$A$2:$H$193,REPORT!B142,REPORT!$A$4) -> Base della trave | F142: b NT | G142: =G39 -> 120 | H142: mm
B143: 89 | D143: =INDEX(TRADUZIONI!$A$2:$H$193,REPORT!B142,REPORT!$A$4)&" - "&INDEX(TRADUZIONI!$A$2:$H$193,REPORT!B143,REPORT!$A$4) -> Base della trave - Dimensione minima | F143: b NT,min | G143: =IF(G41=0,CEILING(DATA!I128,1),CEILING(DATA!P128,1)) -> 76 | H143: mm
D145: b NT ≥ b NT,min | F145: =G142 -> 120 | G145: ≥ | H145: =G143 -> 76
A146: =H145/F145 -> 0.6333333333 | B146: 90 | D146: =IF(A146>1,"! "&INDEX(TRADUZIONI!$A$2:$H$293,REPORT!B146,REPORT!$A$4)&" !","") ->  | F146: =IF(A146<=1,INDEX(TRADUZIONI!$A$2:$H$193,140,REPORT!$A$4),INDEX(TRADUZIONI!$A$2:$H$193,142,REPORT!$A$4)) -> VERIFICATO
B148: 25 | D148: =INDEX(TRADUZIONI!$A$2:$H$193,REPORT!B148,REPORT!$A$4) -> Altezza della trave | F148: h NT | G148: =G40 -> 200 | H148: mm
B149: 89 | D149: =INDEX(TRADUZIONI!$A$2:$H$193,REPORT!B148,REPORT!$A$4)&" - "&INDEX(TRADUZIONI!$A$2:$H$193,REPORT!B149,REPORT!$A$4) -> Altezza della trave - Dimensione minima | F149: h NT,min | G149: =IF(G41=0,CEILING(DATA!J128,1),CEILING(DATA!Q128,1)) -> 190 | H149: mm
D151: h NT ≥ h NT,min | F151: =G148 -> 200 | G151: ≥ | H151: =G149 -> 190
A152: =H151/F151 -> 0.95 | B152: 91 | D152: =IF(A152>1,"! "&INDEX(TRADUZIONI!$A$2:$H$293,REPORT!B152,REPORT!$A$4)&" !","") ->  | F152: =IF(A152<=1,INDEX(TRADUZIONI!$A$2:$H$193,140,REPORT!$A$4),INDEX(TRADUZIONI!$A$2:$H$193,142,REPORT!$A$4)) -> VERIFICATO
B154: 22 | D154: =INDEX(TRADUZIONI!$A$2:$H$193,REPORT!B154,REPORT!$A$4) -> Inclinazione (angolo nel piano verticale) | F154: β | G154: =G41 -> 0 | H154: °
B155: 132 | D155: =INDEX(TRADUZIONI!$A$2:$H$193,REPORT!B154,REPORT!$A$4)&" - "&INDEX(TRADUZIONI!$A$2:$H$193,REPORT!B155,REPORT!$A$4) -> Inclinazione (angolo nel piano verticale) - Valore massimo | F155: β max | G155: =DATA!D85 -> 15 | H155: °
D157: β ≤ β max | F157: =G154 -> 0 | G157: ≤ | H157: =G155 -> 15
A158: =F157/H157 -> 0 | B158: 92 | D158: =IF(A158>1,"! "&INDEX(TRADUZIONI!$A$2:$H$293,REPORT!B158,REPORT!$A$4)&" !","") ->  | F158: =IF(A158<=1,INDEX(TRADUZIONI!$A$2:$H$193,140,REPORT!$A$4),INDEX(TRADUZIONI!$A$2:$H$193,142,REPORT!$A$4)) -> VERIFICATO
B160: 12 | D160: =INDEX(TRADUZIONI!$A$2:$H$193,REPORT!B160,REPORT!$A$4) -> DISPOSIZIONE
B162: 93 | D162: =UPPER(INDEX(TRADUZIONI!$A$2:$H$293,REPORT!B162,REPORT!$A$4))&":" -> N° TOTALE DI CONNETTORI GWZ PER GIUNZIONE: | F162: =F9&" "&G9 -> Tecnico Commerciale: xxx
F163: =F10 -> Progetto: | G163: =G10 -> yyy
D164: =A52*2&" "&INDEX(TRADUZIONI!$A$2:$H$293,REPORT!B165+2,REPORT!$A$4)&" ("&A52&" "&IF(A52=1,INDEX(TRADUZIONI!$A$2:$H$293,REPORT!B165,REPORT!$A$4),INDEX(TRADUZIONI!$A$2:$H$293,REPORT!B165+1,REPORT!$A$4))&") | "&A165&G61&G64 -> 2 pz. (1 coppia) | GWZ8240 | F164: =F11 -> Giunzione n°: | G164: =G11 -> zzz
A165: GWZ | B165: 94 | F165: =F15 -> Data: | G165: =G15 -> 07/09/2022
A167: ="D45A"&IF(G41=0,90,80)&IF(G178=0,"F0","F1")&IF(G94=G101,"a","b") -> D45A90F0a | D167: =INDEX(TRADUZIONI!$A$2:$H$248,B168,REPORT!$A$4) -> sezione | G167: =INDEX(TRADUZIONI!$A$2:$H$248,B168-1,REPORT!$A$4) -> pianta
A168: ="D45C"&A52 -> D45C1 | B168: 98
B169: 99 | H169: =INDEX(TRADUZIONI!$A$2:$H$248,B169,REPORT!$A$4) -> Immagini a scopo illustrativo
B172: 100 | D172: =INDEX(TRADUZIONI!$A$2:$H$193,REPORT!B172,REPORT!$A$4) -> Angolo di inserimento connettori (rispetto al piano di taglio) | G172: 45 | H172: °
D174: =D32 -> Trave principale
D175: =D33 -> Base della trave | F175: B HT | G175: =G33 -> 200 | H175: mm
D176: Altezza della trave | F176: H HT | G176: =G34 -> 400 | H176: mm
A177: =G177/G175 -> 0.445 | B177: 101 | D177: =INDEX(TRADUZIONI!$A$2:$H$293,REPORT!B177,REPORT!$A$4)&IF(A177>1," *","") -> Quota di montaggio | F177: m HT | G177: =IF(G41=0,CEILING(DATA!H123,1),CEILING(DATA!N123,1)) -> 89 | H177: mm
B178: 102 | D178: =INDEX(TRADUZIONI!$A$2:$H$293,REPORT!B178,REPORT!$A$4)&IF(A177>1," *","") -> Lunghezza di affossamento | F178: f HT | G178: =IF(G41=0,CEILING(DATA!G123,1),CEILING(DATA!M123,1)) -> 0 | H178: mm
B180: 103 | D180: =IF(A177>1,"* "&INDEX(TRADUZIONI!$A$2:$H$293,REPORT!B180,REPORT!$A$4),"") ->  | H180: m HT > B HT
B182: 104 | D182: =IF(A177>1,INDEX(TRADUZIONI!$A$2:$H$293,REPORT!B182,REPORT!$A$4),"") -> 
B183: 105 | D183: =IF(A177>1,INDEX(TRADUZIONI!$A$2:$H$293,REPORT!B183,REPORT!$A$4),"") -> 
D185: =D38 -> Trave secondaria
D186: =D39 -> Base della trave | F186: b NT | G186: =G39 -> 120 | H186: mm
D187: Altezza della trave | F187: h NT | G187: =G40 -> 200 | H187: mm
D188: Inclinazione (angolo nel piano verticale) | F188: β | G188: =REPORT!G41 -> 0 | H188: °
B189: 101 | D189: =INDEX(TRADUZIONI!$A$2:$H$293,REPORT!B189,REPORT!$A$4) -> Quota di montaggio | F189: m NT | G189: =IF(G41=0,CEILING(DATA!H128,1),CEILING(DATA!O128,1)) -> 89 | H189: mm
B191: 108 | D191: =INDEX(TRADUZIONI!$A$2:$H$293,REPORT!B191,REPORT!$A$4) -> Distanza del baricentro della parte filettata della vite nel legno dal bordo | F191: a2,CG | G191: =DATA!I132 -> 54 | H191: mm
B192: 110 | D192: =INDEX(TRADUZIONI!$A$2:$H$293,REPORT!B192,REPORT!$A$4) -> Distanza fra i connettori incrociati | F192: aCROSS | G192: =DATA!I133 -> 12 | H192: mm
B193: 109 | D193: =INDEX(TRADUZIONI!$A$2:$H$293,REPORT!B193,REPORT!$A$4) -> Spaziatura perpendicolare alla fibratura | F193: a2 | G193: =DATA!I134 -> 0 | H193: mm
B194: 111 | D194: =INDEX(TRADUZIONI!$A$2:$H$293,REPORT!B194,REPORT!$A$4) -> Distanza fra coppie di connettori incrociati | F194: e | G194: =DATA!I135 -> 0 | H194: mm
D197: =D54&": "&INDEX(DATA!$K$3:$K$4,REPORT!A54) -> Posizionamento connettori sulla trave: GWZ interne (al centro della trave)
B200: 112 | D200: =INDEX(TRADUZIONI!$A$2:$H$293,REPORT!B200,REPORT!$A$4) -> E' possibile disporre i connettori in maniera differente nel rispetto delle distanze minime.
B203: 114 | D203: =INDEX(TRADUZIONI!$A$2:$H$203,B203,REPORT!$A$4) -> Distanze minime dei connettori
B204: 115 | D204: =INDEX(TRADUZIONI!$A$2:$H$293,REPORT!B204,REPORT!$A$4) -> Distanza minima del baricentro della parte filettata della vite nel legno dal bordo | F204: a2,CG,MIN | G204: =DATA!I88 -> 32 | H204: mm
B205: 117 | D205: =INDEX(TRADUZIONI!$A$2:$H$293,REPORT!B205,REPORT!$A$4) -> Distanza minima fra i connettori incrociati | F205: aCROSS,MIN | G205: =DATA!I89 -> 12 | H205: mm
B206: 116 | D206: =INDEX(TRADUZIONI!$A$2:$H$293,REPORT!B206,REPORT!$A$4) -> Minima spaziatura perpendicolare alla fibratura | F206: a2,MIN | G206: =DATA!I90 -> 40 | H206: mm
B207: 118 | D207: =INDEX(TRADUZIONI!$A$2:$H$293,REPORT!B207,REPORT!$A$4) -> Distanza minima fra coppie di connettori incrociati | F207: e,MIN | G207: =DATA!I91 -> 28 | H207: mm
B209: 144 | D209: =INDEX(TRADUZIONI!$A$2:$H$293,B209,REPORT!$A$4)&" "&INDEX(TRADUZIONI!$A$2:$H$293,B210,REPORT!$A$4)&" "&INDEX(TRADUZIONI!$A$2:$H$293,B211,REPORT!$A$4)&" "&INDEX(TRADUZIONI!$A$2:$H$293,B212,REPORT!$A$4)&" "&INDEX(TRADUZIONI!$A$2:$H$293,B213,REPORT!$A$4) -> RB ha svolto le verifiche secondo il metodo degli Stati Limite in accordo EN 1995-1-1 Eurocodice 5-Progettazione delle strutture di legno. Per i valori di resistenza meccanica e per la geometria delle viti si è fatto riferimento a quanto riportato in ETA. Il dimensionamento e la verifica degli elementi in legno devono essere svolti a parte. Prima dell'esecuzione, tutti i calcoli devono essere verificati ed approvati dal progettista responsabile. È dovere del progettista responsabile verificare ad ogni utilizzo la conformità dei dati alla normativa vigente e al progetto. La responsabilità ultima della scelta del prodotto adeguato per una specifica applicazione spetta al progettista.
B210: 146
B211: 147
B212: 148
B213: 149
B216: 8 | D216: =INDEX(TRADUZIONI!$A$2:$H$193,B216,REPORT!$A$4) -> STAMPA RELAZIONE | E216: =INDEX(TRADUZIONI!$A$2:$H$193,B217,REPORT!$A$4) -> STAMPA DISPOSIZIONE | G216: =INDEX(TRADUZIONI!$A$2:$H$193,B218,REPORT!$A$4) -> INIZIO
B217: 9
B218: 120

Sheet TRADUZIONI_LICENSE (hidden)
A1: id | C1: Italiano | D1: English | E1: Deutsch | F1: Française | G1: Español | H1: Português
A2: 1 | C2: CONDIZIONI GENERALI CONTRATTO DI LICENZA D’USO PER IL FOGLIO DI CALCOLO "GWZ_CALCULATOR" | D2: GENERAL TERMS AND CONDITIONS OF THE LICENSE AGREEMENT FOR THE USE OF THE SPREADSHEET "GWZ_CALCULATOR" | E2: ALLGEMEINE BEDINGUNGEN DES LIZENZVERTRAGS ZUR NUTZUNG DES TABELLENKALKULATIONSPROGRAMMS "GWZ_CALCULATOR" | F2: CONDITIONS GÉNÉRALES DU CONTRAT DE LICENCE D'UTILISATION DE LA FEUILLE DE CALCUL "GWZ_CALCULATOR" | G2: CONDICIONES GENERALES DEL CONTRATO DE LICENCIA DE USO PARA LA HOJA DE CÁLCULO "GWZ_CALCULATOR" | H2: CONDIÇÕES GERAIS DO CONTRATO DE LICENÇA PARA A UTILIZAÇÃO DA FOLHA DE CÁLCULO "GWZ_CALCULATOR"
A3: 2 | C3: 1. OGGETTO | D3: 1. SUBJECT | E3: 1. BETREFF | F3: 1. OBJET | G3: 1. OBJETO | H3: 1. OBJETO
A4: 3 | C4: Con le presenti Condizioni Generali (o “Contratto”), ROTHO BLAAS SRL, con sede in I-39040 Cortaccia (BZ), Via dell’Adige 2/1 (d’ora in avanti “RB”) concede all’utente il diritto non esclusivo e revocabile di utilizzare, a titolo gratuito, il foglio di calcolo (d’ora in avanti “CALC”) alle condizioni di seguito indicate e per la durata del presente Contratto. Il presente contratto regola pertanto il rapporto tra l’utente e RB relativamente all’utilizzo di detto foglio di calcolo. Nel momento in cui l’utente scarica e utilizza CALC, lo stesso accetta il presente Contratto e le condizioni riportate. CALC permette all’utente di effettuare calcoli statici esclusivamente per i prodotti e materiali indicati in ciascuna sezione dello stesso. Il presente Contratto vieta espressamente l’uso di CALC per la realizzazione di prodotti che non sono indicati. Nessuna garanzia sulla conformità legale ed al progetto dei calcoli è in ogni caso fornita da RB, che intende fornire esclusivamente uno strumento di calcolo indicativo quale servizio tecnico-commerciale nell’ambito dell’attività di vendita. | D4: With these General Terms and Conditions (or "Agreement"), ROTHO BLAAS SRL, with registered office at I-39040 Cortaccia (BZ), Via dell'Adige 2/1 (hereinafter "RB") grants the user the non-exclusive and revocable right to use the spreadsheet (hereinafter "XLS") free of charge under the following conditions and during the term of this Agreement. In any case, RB does not guarantee the legal and design conformity of the calculations, as RB intends to provide only an indicative calculation tool to be considered as a technical-commercial service within the sales activity. XLS allows the user to perform static calculations only for the products and materials indicated in each of its sections. This Agreement expressly prohibits to use XLS to manufacture products that are not indicated. This Agreement therefore governs the relationship between the User and RB with respect to the use of this spreadsheet. By downloading and using XLS, the user accepts this Agreement and the conditions set out herein. | E4: Mit diesen Allgemeinen Bedingungen (oder „Vertrag“) gewährt ROTHO BLAAS SRL mit Sitz in I-39040 Kurtatsch (BZ), Etschweg 2/1 (nachfolgend „RB“) dem Benutzer das nicht exklusive und widerrufliche Recht, das Tabellenkalkulationsprogramm (nachfolgend „XLS“) zu den im Folgenden angegebenen Bedingungen und für die Laufzeit dieses Vertrags unentgeltlich zu verwenden. Dieser Vertrag regelt somit das Verhältnis zwischen dem Benutzer und RB in Bezug auf die Verwendung des besagten Tabellenkalkulationsprogramms. Wenn der Benutzer XLS herunterlädt und verwendet, akzeptiert er diesen Vertrag und die dort aufgeführten Bedingungen. XLS ermöglicht dem Benutzer, ausschließlich für jene Produkte und Materialien statische Berechnungen vorzunehmen, die in jeder seiner Sektionen angegeben sind. Durch diesen Vertrag ist die Verwendung von XLS für die Fertigung nicht angegebener Produkte ausdrücklich untersagt. RB bietet keine Garantie für die rechtliche Konformität und die Konformität mit dem Berechnungsprojekt und bezweckt, ausschließlich ein indikatives Berechnungstool bereitzustellen, bei dem es sich um eine technisch-kommerzielle Leistung im Rahmen der Vertriebstätigkeit handelt. | F4: Avec les présentes Conditions Générales (ou « Contrat »), ROTHO BLAAS SRL, dont le siège se situe I-39040 Cortaccia (BZ), Via dell'Adige 2/1 (ci-après « RB »), donne à l'utilisateur le droit non exclusif et révocable d'utiliser à titre gratuit la feuille de calcul «CTC_calculator» (ci-après « XLS »), aux conditions indiquées ci-après et pour la durée du présent Contrat. Le présent contrat régit ainsi le rapport entre l'utilisateur et RB concernant l'utilisation de la feuille de calcul mentionnée. Lorsque l'utilisateur télécharge et utilise XLS, il accepte le présent Contrat et les conditions indiquées. XLS permet à l'utilisateur de déterminer un nombre indicatif de connecteurs ; le nombre exact de connecteurs doit être défini par le concepteur responsable, qui doit vérifier l'exactitude des résultats issus du traitement des données insérées. RB ne donne aucune garantie sur la conformité des calculs à la réglementation et au projet et fournit exclusivement un outil de calcul indicatif en tant que service technico-commercial dans le cadre de l'activité de vente. | G4: Con estas Condiciones Generales (o “Contrato”), ROTHO BLAAS SRL, con domicilio en I-39040 Cortaccia (BZ), Via dell'Adige 2/1 (en lo sucesivo, “RB”), otorga al usuario el derecho no exclusivo y revocable para usar, a título gratuito, la hoja de cálculo “CTC_calculator” (en lo sucesivo, “XLS”) en las condiciones indicadas a continuación y mientras esté vigente el Contrato. Por lo tanto, este contrato tiene por objeto regular la relación entre el usuario y RB con respecto al uso de dicha hoja de cálculo. En el momento en que el usuario descarga y usa XLS, acepta este Contrato y las condiciones indicadas. XLS permite al usuario realizar cálculos estáticos exclusivamente para los productos y los materiales indicados en cada una de sus secciones. Este Contrato prohíbe expresamente el uso de XLS para realizar cálculos para productos que no estén indicados. En cualquier caso, RB no proporciona ninguna garantía sobre la conformidad legal ni con el proyecto de cálculos y solo pretende proporcionar una herramienta de cálculo indicativo, como servicio técnico-comercial en el ámbito de la actividad de ventas. | H4: Com as presentes Condições Gerais (ou “Contrato”), a ROTHO BLAAS SRL, com sede em I-39040 Cortaccia (BZ), Via dell’Adige 2/1 (a seguir designada “RB”) concede ao Utilizador o direito não exclusivo e revogável de utilizar gratuitamente a folha de cálculo (a seguir designada “XLS”) nas condições a seguir indicadas e durante o período de vigência do presente Contrato. Este acordo rege, portanto, a relação entre o Utilizador e a RB no que diz respeito à utilização da referida folha de cálculo. Ao transferir e utilizar o XLS, o Utilizador aceita o presente Contrato e as Condições aqui estabelecidas. O XLS permite ao Utilizador efetuar cálculos estáticos apenas para os produtos e materiais indicados em cada secção do mesmo. O presente Contrato proíbe expressamente a utilização de XLS para o fabrico de produtos não indicados. A RB não garante, em caso algum, a conformidade legal e com a conceção dos cálculos, pretendendo fornecer apenas um instrumento de cálculo indicativo enquanto serviço técnico-comercial no âmbito das suas atividades de venda.
A5: 4 | C5: 2. RIFERIMENTI TECNICO-NORMATIVI | D5: 2. TECHNICAL-STANDARDS REFERENCES | E5: 2. TECHNISCH-RECHTLICHE VERWEISE | F5: 2. RÉFÉRENCES TECHNIQUES ET RÉGLEMENTAIRES | G5: 2. REFERENCIAS TÉCNICAS Y NORMATIVAS | H5: 2. REFERÊNCIAS TÉCNICO-NORMATIVAS
A6: 5 | C6: RB ha svolto le verifiche secondo i riferimenti tecnico-normativi indicati nel foglio di calcolo stesso, ove previsti. | D6: RB carried out the checks in accordance with the technical and regulatory references indicated in the spreadsheet itself, where applicable. | E6: RB hat die Prüfungen, sofern vorgesehen, gemäß den technisch-rechtlichen Verweisen vorgenommen, die in der Tabellenkalkulation aufgeführt sind. | F6: RB a effectué les vérifications selon les références techniques et réglementaires indiquées directement dans la feuille de calcul, si prévues. | G6: RB ha efectuado las comprobaciones según las referencias técnicas y normativas indicadas en la misma hoja de cálculo cuando así proceda. | H6: RB realizou as verificações de acordo com as referências técnicas e normativas indicadas na própria folha de cálculo, quando aplicável.
A7: 6 | C7: 3. DIRITTI E OBBLIGHI DI RB | D7: 3. RB RIGHTS AND OBLIGATIONS | E7: 3. RECHTE UND PFLICHTEN VON RB | F7: 3. DROITS ET OBLIGATIONS DE RB | G7: 3. DERECHOS Y OBLIGACIONES DE RB | H7: 3. DIREITOS E OBRIGAÇÕES DA RB
A8: 7 | C8: RB: a) mette a disposizione dell’Utente CALC gratuitamente, così com’è; b) non fornisce all’utente alcun supporto tecnico per l’utilizzo di CALC; c) non garantisce la conformità di CALC alla normativa vigente né al progetto dei calcoli effettuati tramite lo stesso. In particolare, in seguito alla modifica delle disposizioni di pertinenza quali, per es. norme, omologazioni, ecc. il foglio di calcolo potrebbe diventare, in parte o per intero, non valido. d) pur riservandosi il diritto di aggiornare, rivedere e sviluppare CALC, non assume alcun obbligo nei confronti dell’utente di verificare, correggere, completare o aggiornare il foglio di calcolo e/o rendere disponibili allo stesso gli aggiornamenti effettuati. | D8: RB: a) makes available XLS to the User free of charge, as it is; b) does not provide the user with any technical support for using XLS; c) does not guarantee that XLS complies with the regulations in force or with the calculations design made using it. In particular, as a result of changes to the relevant provisions, such as standards, approvals, etc., the spreadsheet may become invalid in part or in full. d) while reserving the right to update, revise and develop XLS, RB does not assume any obligation towards the user to verify, correct, complete or update the spreadsheet and/or make the updates available to the user. | E8: RB: a) stellt dem Benutzer XLS kostenlos, wie besehen, zur Verfügung; b) bietet dem Benutzer keinerlei technischen Support für die Verwendung von XLS; c) gewährleistet weder die Konformität von XLS mit den geltenden Verordnungen noch mit dem Projekt der Berechnungen, die hiermit vorgenommen wurden. Insbesondere könnte das Tabellenkalkulationsprogramm infolge einer Änderung der relevanten Bestimmungen, wie z. B. Normen, Zulassungen usw., seine Gültigkeit teilweise oder vollständig verlieren. d) übernimmt, auch wenn das Unternehmen sich das Recht auf Aktualisierung, Korrektur und Entwicklung von XLS vorbehält, keinerlei Verpflichtung gegenüber dem Benutzer, das Tabellenkalkulationsprogramm zu prüfen, zu korrigieren, zu vervollständigen oder zu aktualisieren und/oder dieses mit den vorgenommenen Aktualisierungen auszustatten. | F8: RB: a) met CALC à disposition de l'utilisateur gratuitement, en l'état actuel ; b) ne fournit à l'utilisateur aucun support technique pour l'utilisation de CALC ; c) ne garantit pas la conformité de CALC à la réglementation en vigueur ni au projet des calculs effectués à l'aide de celui-ci. En particulier, suite à la modification des dispositions relatives, comme les normes, homologations, etc. la feuille de calcul pourrait devenir entièrement ou partiellement non valide ; d) tout en se réservant le droit de mettre à jour, revoir et développer CALC, ne prend aucune obligation envers l'utilisateur concernant la vérification, la correction, le complètement ou la mise à jour de la feuille de calcul et/ou la mise à disposition des mises à jour effectuées. | G8: RB: a) pone el XLS a disposición del usuario gratuitamente, tal como está; b) no proporciona al usuario asistencia técnica de ningún tipo para el uso de XLS; c) no garantiza la conformidad de XLS con la normativa vigente ni con el proyecto de cálculos realizados con este. En concreto, tras modificar las disposiciones pertinentes, como, por ejemplo, normas, homologaciones, etc., la hoja de cálculo puede dejar de ser válida, parcial o completamente. d) aunque se reserva el derecho de actualizar, revisar y desarrollar XLS, no asume ninguna obligación, ante el usuario, de comprobar, corregir, completar o actualizar la hoja de cálculo ni de poner a su disposición las actualizaciones realizadas. | H8: RB: a) coloca o XLS à disposição do Utilizador, gratuitamente, tal como está; b) não fornece ao Utilizador qualquer suporte técnico para a utilização do XLS; c) não garante que o XLS esteja em conformidade com as normas em vigor ou com a conceção dos cálculos efetuados através do mesmo. Em particular, na sequência de alterações nas disposições aplicáveis, tais como normas, homologações, etc., a folha de cálculo pode ficar total ou parcialmente inválida. d) embora se reserve o direito de atualizar, rever e desenvolver o XLS, não assume qualquer obrigação perante o utilizar de verificar, corrigir, completar ou atualizar a folha de cálculo e/ou disponibilizar ao utilizar as atualizações realizadas.
A9: 8 | C9: 4. DIRITTI E OBBLIGHI DELL’UTENTE | D9: 4. USER RIGHTS AND OBLIGATIONS | E9: 4. RECHTE UND PFLICHTEN DES BENUTZERS | F9: 4. DROITS ET OBLIGATIONS DE L'UTILISATEUR | G9: 4. DERECHOS Y OBLIGACIONES DEL USUARIO | H9: 4. DIREITOS E OBRIGAÇÕES DO UTILIZADOR
A10: 9 | C10: L’Utente dichiara di utilizzare il foglio di calcolo in qualità di professionista escludendosi qualsiasi uso come consumatore, e di rispettare sempre i seguenti obblighi e divieti: a) l’obbligo e la responsabilità di verificare che CALC soddisfi i propri bisogni specifici e sia compatibile con i propri hardware-software-sistemi; b) l’obbligo di verificare, ad ogni utilizzo, la conformità dei calcoli effettuati tramite CALC alla normativa vigente ed al progetto; c) l’obbligo di verificare la conformità legale dei calcoli effettuati tramite il Software; d) L’obbligo di utilizzare l'ultima versione di CALC resa disponibile dal contatto di riferimento RB, controllando ad ogni utilizzo eventuali aggiornamenti; e) il divieto di utilizzare CALC per prodotti non indicati in ciascuna sezione di calcolo; f) l’obbligo di utilizzare software antivirus aggiornati e conformi allo standard industriale vigente; g) l’obbligo di non cedere la licenza d’uso di CALC a terzi e/o in altro modo trasferire, dare in pegno o in locazione, affittare o condividere con altri o concedere in sublicenza i diritti di utilizzo del foglio di calcolo; h) il divieto di modificare o variare in alcun modo CALC, anche tramite terzi. L'utente si impegna a chiedere al referente di RB l'ultima versione di CALC. | D10: The User declares to use the spreadsheet as a professional excluding any use as a consumer, and to always comply with the following obligations and prohibitions: a) obligation and responsibility to verify that XLS meets the specific needs and that it is compatible with the hardware-software-systems; b) obligation to verify, for each use, the compliance of the calculations made through XLS to the regulations in force and to the project; c) obligation to verify the legal compliance of the calculations made through the Software; d) obligation to use the latest version of XLS made available by the RB contact person, checking at each use for any updates that have occurred; e) prohibition to use XLS for products not indicated in each calculation section; f) obligation to use updated antivirus software that complies with the industry standard in force; g) obligation not to assign the licence to use XLS to third parties and/or in any other way transfer, pledge or lease, rent or share with others or sublicense the rights to use the spreadsheet; h) prohibition to modify or vary XLS in any way, including through third parties. The user commits himself to ask the RB contact person for the last version of the XLS. | E10: Der Benutzer erklärt, das Tabellenkalkulationsprogramm in seiner Eigenschaft als Fachkraft zu verwenden und in keiner Weise als Verbraucher davon Gebrauch zu machen sowie stets die folgenden Pflichten und Verbote zu respektieren: a) die Pflicht und Verantwortung, zu prüfen, dass XLS die eigenen spezifischen Anforderungen erfüllt und mit den eigenen Hardware-Software-Systemen übereinstimmt; b) die Pflicht, bei jeder Verwendung die Übereinstimmung der mit XLS vorgenommenen Berechnungen mit den geltenden Rechtsvorschriften und dem Projekt zu überprüfen; c) die Pflicht, die rechtliche Konformität der mit der Software vorgenommenen Berechnungen zu überprüfen; d) die Verpflichtung die neueste Version von XLS zu verwenden, welche von der RB-Kontaktperson zur Verfügung gestellt wird. Bei jeder Verwendung ist zu überprüfen, ob Aktualisierungen vorhanden sind; e) das Verbot, XLS für Produkte zu verwenden, die nicht in jeder Sektion der Berechnung angegeben sind; f) die Pflicht, eine aktualisierte und dem geltenden Industriestandard entsprechende Antivirensoftware zu verwenden; g) die Pflicht, die Nutzungslizenz von XLS nicht an Dritte weiterzugeben und/oder auf eine andere Art zu übertragen, zu beleihen oder zu verpachten, zu vermieten oder mit anderen zu teilen oder die Nutzungsrechte des Tabellenkalkulationsprogramms in Unterlizenz zu vergeben; h) das Verbot, XLS – auch durch Dritte – in irgendeiner Weise zu ändern oder zu variieren. Der Benutzer stimmt zu, sich bei der RB-Kontaktperson nach der letzten XLS-Version zu informieren. | F10: L'utilisateur déclare utiliser la feuille de calcul en tant que professionnel et en excluant toute utilisation en tant que consommateur, et respecter systématiquement les obligations et interdictions suivantes: a) l'obligation et la responsabilité de vérifier que CALC satisfait ses exigences spécifiques et est compatible avec son matériel-logiciel-système ; b) l'obligation de vérifier, à chaque utilisation, la conformité des calculs effectués avec CALC à la réglementation en vigueur et au projet ; c) l'obligation de vérifier la conformité légale des calculs effectués avec le logiciel ; d) l'obligation d'utiliser la dernière version de XLS mise à disposition par la personne de contact du RB, en vérifiant à chaque utilisation les éventuelles mises à jour ; e) l'interdiction d'utiliser CALC pour des produits non indiqués dans chaque section de calcul ; f) l'obligation d'utiliser des logiciels antivirus actualisés et conformes à la réglementation industrielle en vigueur ; g) l'interdiction de céder la licence d'utilisation de CALC à des tiers et/ou de transférer, prêter, louer, partager avec autrui ou fournir en sous-licence les droits d'utilisation de la feuille de calcul ; h) l'interdiction de modifier ou de changer CALC de quelque manière que ce soit, y compris à travers des tiers. L'utilisateur s'engage à demander à la personne de contact du RB la dernière version du XLS. | G10: El Usuario declara que utilizará la hoja de cálculo como profesional, quedando excluido cualquier uso como consumidor, y que respetará siempre las siguientes obligaciones y prohibiciones: a) la obligación y la responsabilidad de comprobar que XLS satisfaga sus necesidades específicas y sea compatible con su hardware, software y sistemas; b) la obligación de comprobar, cada vez que lo use, la conformidad de los cálculos realizados mediante XLS con la normativa vigente y con el proyecto; c) la obligación de comprobar la conformidad legal de los cálculos realizados mediante el software; d) la obligación de utilizar la última versión de XLS puesta a disposición por el contacto de referencia RB, comprobando en cada uso las actualizaciones que se hayan producido; e) la prohibición de usar XLS para productos no indicados en cada sección de cálculo; f) la obligación de utilizar un software antivirus actualizado y que sea conforme con el estándar industrial actual; g) la obligación de no ceder la licencia de uso de XLS a terceros ni, por otros medios, transferir, dar en garantía o arrendamiento, alquilar o compartir con otros o conceder en sublicencia los derechos de uso de la hoja de cálculo; h) la prohibición de modificar o cambiar de cualquier forma XLS, también mediante terceros. El usuario se compromete a pedir a la persona de contacto de RB la última versión del XLS. | H10: O Utilizador declara utilizar a folha de cálculo na qualidade de profissional, excluindo qualquer utilização como consumidor e respeitar sempre as seguintes obrigações e proibições: a) a obrigação e a responsabilidade de verificar se o XLS satisfaz as suas necessidades específicas e é compatível com os seus hardware-software-sistemas; b) a obrigação de verificar, em cada utilização, a conformidade dos cálculos efetuados através do XLS com as normas em vigor e com a conceção; c) a obrigação de verificar a conformidade legal dos cálculos efetuados através do Software; d) a obrigação de utilizar a última versão de XLS disponibilizada pela pessoa de contacto do RB, verificando em cada utilização se ocorreram quaisquer actualizações; e) a proibição de utilizar o XLS para produtos não indicados em cada secção de cálculo; f) a obrigação de utilizar software antivírus atualizado e em conformidade com a norma do setor em vigor; g) a obrigação de não ceder a licença de utilização do XLS a terceiros e/ou de transferir, penhorar ou arrendar, alugar ou partilhar com outros ou sublicenciar os direitos de utilização da folha de cálculo; h) a proibição de modificar ou alterar o XLS de qualquer forma, inclusive através de terceiros. O utilizador compromete-se a pedir à pessoa de contacto do RB a última versão do XLS.
A11: 10 | C11: 5. DIRITTI D’AUTORE | D11: 5. COPYRIGHTS | E11: 5. URHEBERRECHTE | F11: 5. DROITS D'AUTEUR | G11: 5. DERECHOS DE AUTOR | H11: 5. DIREITOS DE AUTOR
A12: 11 | C12: I diritti d’autore sulle formulazioni di cui nel foglio di calcolo e tutti i diritti di proprietà intellettuale ed industriale sottesi a queste (quali in via puramente esemplificativa e non esaustiva: marchi, brevetti, segreti commerciali, know how, informazioni riservate) sono e restano di proprietà esclusiva di RB. Il presente accordo non conferisce all’utente alcuno dei diritti di cui sopra. | D12: The copyrights on the formulations referred to in the spreadsheet and all the intellectual and industrial property rights underlying them (such as, but not limited to: trademarks, patents, trade secrets, know-how, confidential information) are and remain the exclusive property of RB. This agreement does not transfer any of the above rights to the user. | E12: Die Urheberrechte auf die im Tabellenkalkulationsprogramm aufgeführten Formeln und alle ihnen zugrunde liegenden geistigen und gewerblichen Eigentumsrechte (beispielsweise und ohne Anspruch auf Vollständigkeit: Marken, Patente, Geschäftsgeheimnisse, Know-how, vertrauliche Informationen) sind und bleiben ausschließlicher Besitz von RB. Dieser Vertrag erteilt dem Benutzer keines der hier o. g. Rechte. | F12: Les droits d'auteur sur les formules de la feuille de calcul et tous les droits de propriété intellectuelle et industrielle sous-jacents (par exemple, sans s'y limiter : marques, brevets, secrets industriels, savoir-faire, informations confidentielles) sont et restent la propriété exclusive de RB. Le présent accord ne donne à l'utilisateur aucun des droits susmentionnés. | G12: Los derechos de autor sobre las fórmulas de la hoja de cálculo y todos los derechos de propiedad intelectual e industrial que se aplican a aquellas (a título meramente de ejemplo y no exhaustivo: marcas, patentes, secretos comerciales, saber hacer, información confidencial) son y seguirán siendo propiedad exclusiva de RB. Este acuerdo no otorga al usuario ninguno de los derechos indicados anteriormente. | H12: Os direitos de autor sobre as formulações referidas na folha de cálculo e todos os direitos de propriedade intelectual e industrial que lhes estão subjacentes (tais como, a título de exemplo e não exaustivo: marcas, patentes, segredos comerciais, saber-fazer, informações confidenciais) são e continuam a ser propriedade exclusiva da RB. O presente acordo não concede ao Utilizador nenhum dos direitos acima estabelecidos.
A13: 12 | C13: 6. DURATA, RECESSO E CESSAZIONE | D13: 6. DURATION, WITHDRAWAL AND TERMINATION | E13: 6. LAUFZEIT, RÜCKTRITT UND AUFLÖSUNG | F13: 6. DURÉE, RETRAIT ET RÉSILIATION | G13: 6. DURACIÓN, RESCISIÓN Y TERMINACIÓN | H13: 6. DURAÇÃO, DENÚNCIA E CESSAÇÃO
A14: 13 | C14: Le presenti condizioni generali e, di conseguenza, la licenza d’uso del foglio di calcolo, sono validi dal momento del download dello stesso sino alla cessazione del suo utilizzo. L’utente può recedere in qualsiasi momento dal presente Contratto eliminando CALC e tutte le eventuali copie dai suoi sistemi. RB può recedere dal presente Contratto e disattivare il servizio in caso di infrazione di una qualsiasi delle disposizioni che regolano la licenza d’uso. Nel caso in cui RB comunichi la cessazione, l’utente dovrà provvedere ad eliminare il foglio di calcolo ed eventuali sue copie dai suoi sistemi. | D14: These general conditions and, consequently, the licence to use the spreadsheet, are valid from the moment of downloading it until the termination of its use. The user may withdraw from this Agreement at any time by deleting the XLS and all copies from its systems. RB may withdraw from this Agreement and deactivate the service in the event of a breach of any of the provisions governing the license of use. In the event that RB notifies its termination, the user shall remove the spreadsheet and any copies thereof from its systems. | E14: Diese Allgemeinen Bedingungen und demzufolge die Nutzungslizenz des Tabellenkalkulationsprogramms gelten ab dem Zeitpunkt ihres Downloads bis zur Beendigung seiner Nutzung. Der Benutzer kann zu jeder Zeit vom Vertrag zurücktreten, indem er XLS und alle etwaigen Kopien von seinen Systemen löscht. RB kann im Falle eines Verstoßes gegen eine der die Nutzungslizenz regelnden Bestimmungen von diesem Vertrag zurücktreten und die Leistung deaktivieren. Für den Fall, dass RB den Rücktritt mitteilt, muss der Benutzer dafür sorgen, dass das Tabellenkalkulationsprogramm und etwaige Kopien von seinen Systemen gelöscht werden. | F14: Les présentes conditions générales et, par conséquent, la licence d'utilisation de la feuille de calcul, sont valables à partir du moment du téléchargement de celle-ci jusqu'à la fin de son utilisation. L'utilisateur peut résilier à tout moment le présent Contrat en supprimant CALC et toutes les copies éventuelles de ses systèmes. RB peut résilier à tout moment le présent Contrat et désactiver le service en cas d'infraction d'une des dispositions qui régissent la licence d'utilisation. En cas de communication de résiliation par RB, l'utilisateur devra supprimer la feuille de calcul et ses copies éventuelles de ses systèmes. | G14: Las presentes condiciones generales y, en consecuencia, la licencia de uso de la hoja de cálculo, son válidas desde el momento de su descarga hasta que termine su uso. El usuario puede rescindir en cualquier momento este contrato eliminando XLS y cualquier copia de sus sistemas. RB puede rescindir este Contrato y desactivar el servicio en caso de infracción de una cualquiera de las disposiciones que regulan la licencia de uso. En caso de que RB comunique la terminación, el usuario deberá eliminar la hoja de cálculo y cualquier copia de sus sistemas. | H14: As presentes Condições Gerais e, consequentemente, a licença de utilização da folha de cálculo, são válidas desde o momento de download do mesmo até à cessação da sua utilização. O Utilizador pode rescindir o presente Contrato a qualquer momento, eliminando o XLS e todas as cópias dos seus sistemas. A RB pode rescindir o presente Contrato e desativar o serviço em caso de violação de qualquer uma das disposições que regem a licença de utilização. Caso a RB comunique a cessação, o Utilizador deve eliminar a folha de cálculo e eventuais cópias da mesma dos seus sistemas.
A15: 14 | C15: 7. RESPONSABILITÀ | D15: 7. RESPONSIBILITY | E15: 7. VERANTWORTUNG | F15: 7. RESPONSABILITÉ | G15: 7. RESPONSABILIDAD | H15: 7. RESPONSABILIDADE
A16: 15 | C16: L’utente è l’unico responsabile per l’uso di CALC, inclusi, ma non solo, tutti i calcoli, i tabulati, i dati di esportazioni con esso svolti e/o per gli errori di inserimento, per la protezione dei file di dati e per la manutenzione ed in generale per qualsiasi uso effettuato del foglio di calcolo. RB non garantisce e in nessun caso potrà essere ritenuta responsabile in merito a danni, perdite e costi o altre conseguenze, a qualsiasi titolo (garanzia per vizi, garanzia per malfunzionamento, responsabilità del prodotto o di legge, etc.) derivanti da: • utilizzo di CALC, calcoli effettuati, conformità alla normativa vigente, al progetto o altre esigenze dell’Utente; • compatibilità hardware e software, virus, malfunzionamenti, difetti, errori o lacune; • mancato aggiornamento del foglio di calcolo e/o interruzione della messa a disposizione del foglio di calcolo e/o cessazione del contratto a qualsiasi titolo; • violazione di diritti di proprietà intellettuale di terzi. L’utente conferma di aver compreso e accettato le esclusioni di responsabilità e le limitazioni di responsabilità e reclamo del presente Contratto. L’utente conferma inoltre che il foglio di calcolo è disponibile gratuitamente, che le esclusioni e le limitazioni sono elementi fondamentali del presente Contratto e che RB non rende disponibile il proprio foglio di calcolo all’utente nel caso in cui le esclusioni o le limitazioni vengono eliminate o modificate a favore dell’utente stesso. | D16: The user is solely responsible for the use of XLS, including, but not limited to, all calculations, printouts, export data made with it and/or for entry errors, protection of data files and maintenance and in general for any use of the spreadsheet. RB does not guarantee and in no case can be held responsible for damages, losses and costs or other consequences, for any reason (warranty for defects, warranty for malfunction, product or legal responsibility, etc.) deriving from: • use of XLS, calculations made, compliance with current legislation, with the design or other User needs; • hardware and software compatibility, viruses, malfunctions, defects, errors or gaps; • failure to update the spreadsheet and/or interruption of the availability of the spreadsheet and/or termination of the agreement for any reason; • infringement of intellectual property rights of third parties. The user confirms to have understood and accepted the disclaimers and limitations of liability and claim of this Agreement. The user also confirms that the spreadsheet is available for free, that the exclusions and limitations are fundamental elements of this Agreement and that RB does not make its spreadsheet available to the user if the exclusions or limitations are deleted or modified in favour of the user. | E16: Der Benutzer ist der alleinige Verantwortliche für die Verwendung von XLS, einschließlich, aber nicht beschränkt auf alle Berechnungen, die Tabellen, die Daten aus Exporten, die hiermit vorgenommen wurden und/oder für die Fehler bei der Eingabe, für den Schutz der Datendateien sowie für die Instandhaltung und im Allgemeinen für jede erfolgte Verwendung des Tabellenkalkulationsprogramms. RB garantiert nicht für bzw. kann in keinem Fall haftbar gemacht werden für Schäden, Verluste und Kosten oder sonstige Auswirkungen aus einem beliebigen Grund (Gewährleistung bei Mängeln, Gewährleistung bei Fehlfunktionen, gesetzliche oder Produkthaftung usw.), die sich ergeben aus: • Verwendung von XLS, vorgenommene Berechnungen, Übereinstimmung mit den geltenden Rechtsvorschriften, dem Projekt oder sonstigen Anforderungen des Benutzers; • Hardware- und Software-Kompatibilität, Viren, Fehlfunktionen, Schäden, Fehlern oder Sicherheitslücken; • nicht erfolgter Aktualisierung des Tabellenkalkulationsprogramms und/oder Unterbrechung der Bereitstellung des Tabellenkalkulationsprogramms und/oder Rücktritt vom Vertrag aus einem beliebigen Grund; • Verletzung geistiger Eigentumsrechte Dritter. Der Benutzer bestätigt, die Haftungsausschlüsse sowie die Haftungs- und Beschwerdebeschränkungen verstanden und akzeptiert zu haben. Der Benutzer bestätigt weiterhin, dass das Tabellenkalkulationsprogramm kostenlos verfügbar ist, dass die Ausschlüsse und Beschränkungen grundlegende Elemente dieses Vertrags sind und dass RB sein Tabellenkalkulationsprogramm dem Benutzer nicht zur Verfügung stellt, sollten die Ausschlüsse oder Beschränkungen zugunsten des Benutzers beseitigt oder geändert werden. | F16: L'utilisateur est le seul responsable de l'utilisation de CALC y compris, sans s'y limiter, de l'ensemble des calculs, des rapports, des données d'exportation réalisées avec celui-ci et/ou des erreurs de saisie, de la protection des fichiers de données et de la conservation et en général de toute utilisation de la feuille de calcul. RB ne garantit pas et ne pourra en aucun cas être considéré responsable de dommages, pertes et frais ou d'autres conséquences, à quelque titre que ce soit (garantie en cas de défauts, garantie en cas de dysfonctionnement, responsabilité des produits ou responsabilité légale, etc.) dérivant de: • l'utilisation de CALC, les calculs effectués, la conformité à la réglementation en vigueur, au projet ou à d'autres exigences de l'utilisateur ; • la compatibilité matérielle et logicielle, les virus, dysfonctionnements, défauts, erreurs ou lacunes ; • l'absence de mise à jour de la feuille de calcul et/ou l'interruption de la mise à disposition de la feuille de calcul et/ou la résiliation du contrat, à quelque titre que ce soit ; • la violation des droits de propriété intellectuelle de tiers. L'utilisateur confirme qu'il a compris et qu'il accepte les exclusions de responsabilité et les limitations de responsabilité et de réclamation du présent Contrat. L'utilisateur confirme également que la feuille de calcul est disponible gratuitement, que les exclusions et les limitations sont des éléments fondamentaux du présent Contrat et que RB ne fournit pas sa feuille de calcul à l'utilisateur si les exclusions ou les limitations sont supprimées ou modifiées en faveur de l'utilisateur. | G16: El usuario es el único responsable del uso de XLS, incluidos, entre otros, todos los cálculos, los listados y los datos exportados realizados con él; también es el único responsable de los errores de introducción, de la protección de los archivos de datos y del mantenimiento y, en general, de cualquier uso que haga de la hoja de cálculo. RB no ofrece ninguna garantía y en ningún caso podrá ser considerada responsable por daños, pérdidas y costes u otras consecuencias, bajo ningún concepto (garantía por vicios, garantía por mal funcionamiento, responsabilidad del producto o legal, etc.), ocasionados por: • uso de XLS, cálculos realizados, conformidad con la normativa vigente, con el proyecto u otras exigencias del Usuario; • compatibilidad del hardware y software, virus, mal funcionamiento, defectos, errores o lagunas; • falta de actualización de la hoja de cálculo o interrupción de la disponibilidad de la hoja de cálculo o terminación del contrato por cualquier motivo; • infracción de derechos de propiedad intelectual de terceros; El usuario confirma que ha comprendido y acepta las exclusiones de responsabilidad y las limitaciones de responsabilidad y reclamación de este Contrato. El usuario también confirma que la hoja de cálculo está disponible gratuitamente, que las exclusiones y limitaciones son elementos fundamentales de este Contrato y que RB no pone su hoja de cálculo a disposición del usuario si las exclusiones o limitaciones se eliminan o modifican a favor del usuario en cuestión. | H16: O Utilizador é o único responsável pela utilização do XLS, incluindo, mas não limitado a, todos os cálculos, impressões, dados de exportações realizados através do mesmo e/ou por erros de introdução, segurança de ficheiros de dados e manutenção e, em geral, por qualquer utilização da folha de cálculo. A RB não garante e, em nenhum caso, pode ser responsabilizada por danos, perdas e custos ou outras consequências, a qualquer título (garantia contra defeitos, por mau funcionamento, responsabilidade do produto ou legal, etc.) decorrentes de: • utilização do XLS, cálculos efetuados, conformidade com a legislação em vigor, conceção ou outras exigências do Utilizador; • compatibilidade de hardware e software, vírus, avarias, defeitos, erros ou lacunas; • não atualização da folha de cálculo e/ou interrupção da disponibilização da folha de cálculo e/ou cessação do contrato a qualquer título; • violação dos direitos de propriedade intelectual de terceiros; O Utilizador declara que compreende e aceita as exclusões de responsabilidade e limitações de responsabilidade e reclamação do presente Contrato. O Utilizador declara igualmente que a folha de cálculo está disponível gratuitamente, que as exclusões e limitações são elementos fundamentais do presente Contrato e que a RB não disponibilizará a sua folha de cálculo ao Utilizador caso as exclusões ou limitações sejam eliminadas ou alteradas a favor deste último.
A17: 16 | C17: 8. RIMBORSO | D17: 8. REFUND | E17: 8. RÜCKERSTATTUNG | F17: 8. REMBOURSEMENT | G17: 8. REEMBOLSO | H17: 8. REEMBOLSO
A18: 17 | C18: L'utente accetta di tenere indenne e risarcire RB, le sue società affiliate e il suo o i suoi funzionari, direttori, dipendenti, successori, e incaricati (ciascuno singolarmente, "Beneficiario", collettivamente, i "Beneficiari") per i costi sostenuti in relazione a pretese avanzate da terzi per danni o perdite derivanti dall’utilizzo del foglio di calcolo da parte dell‘utente (compresi, ma non solo, onorari e spese di gestione sostenute da RB). | D18: The user agrees to indemnify and hold harmless RB, its subsidiaries and its or its officers, directors, employees, successors and appointees (each individually, "Beneficiary", collectively, the "Beneficiaries") for the costs incurred in relation to claims made by third parties for damages or losses deriving from the use of the spreadsheet by the user (including, but not limited to, fees and management costs incurred by RB). | E18: Der Benutzer akzeptiert, RB, dessen Niederlassungen sowie dessen und deren Führungskräfte, Direktoren, Angestellte, Nachfolger und Beauftragte (jeder von diesen einzeln „Begünstigter“, gemeinsam die „Begünstigten“) für Kosten schadlos zu halten und zu entschädigen, die im Zusammenhang mit von Dritten vorgebrachten Ansprüchen für Schäden oder Verluste entstehen, welche sich aus der Nutzung des Tabellenkalkulationsprogramms seitens des Benutzers (einschließlich, aber nicht beschränkt auf von RB getragene Honorare und Verwaltungskosten) ergeben. | F18: L'utilisateur accepte d'indemniser et de dégager de toute responsabilité RB, ses sociétés affiliées et son ou ses dirigeants, directeurs, employés, successeurs et mandataires (chacun individuellement, le « Bénéficiaire », collectivement, les « Bénéficiaires ») pour les coûts engagés relativement aux réclamations faites par des tiers pour des dommages ou pertes découlant de l'utilisation de la feuille de calcul par l'utilisateur (incluant, sans s'y limiter, les honoraires et frais de gestion engagés par RB). | G18: El usuario acepta eximir de toda responsabilidad e indemnizar a RB, sus sociedades afiliadas y sus funcionarios, directores, empleados, sucesores, y encargados (cada uno individualmente, "Beneficiario", colectivamente, "Beneficiarios") por los costes sufragados en relación con las reclamaciones presentadas por terceros por daños o pérdidas ocasionados por el uso de la hoja de cálculo por parte del usuario (incluidos, entre otros, honorarios y gastos de gestión sufragados por RB). | H18: O Utilizador aceita indemnizar e isentar a RB, respetivas filiais e executivo(s), diretores, empregados, sucessores e agentes (cada um individualmente, “Beneficiário”, coletivamente, os “Beneficiários”) por custos incorridos em relação a reclamações de terceiros, por danos ou perdas decorrentes da utilização da folha de cálculo pelo Utilizador (incluindo, mas não limitado a, honorários e despesas de gestão suportadas pela RB).
A19: 18 | C19: 9. VARIE | D19: 9. MISCELLANEOUS | E19: 9. SONSTIGE | F19: 9. DIVERS | G19: 9. DISPOSICIONES VARIAS | H19: 9. DIVERSOS
A20: 19 | C20: Le presenti condizioni generali costituiscono l’intero accordo tra RB e l’utente per quanto riguarda la materia in oggetto e sostituiscono tutti gli accordi precedenti, orali o scritti che siano, nonché eventuali intese tra RB e l’utente. | D20: These general conditions constitute the entire agreement between RB and the user regarding the subject matter and replace all previous, oral or written agreements, as well as any agreements between RB and the user. | E20: Diese Allgemeinen Bedingungen bilden die vollständigen Vereinbarungen zwischen RB und dem Benutzer in Bezug auf die Angelegenheit und ersetzen alle vorherigen Vereinbarungen, ob mündlich oder schriftlich, sowie etwaige Absprachen zwischen RB und dem Benutzer. | F20: Les présentes conditions générales constituent l'ensemble de l'accord entre RB et l'utilisateur en la matière et remplacent tous les accords précédents, oraux ou écrits, ainsi que les éventuels arrangements entre RB et l'utilisateur. | G20: Estas condiciones generales constituyen el acuerdo completo entre RB y el usuario por lo que respecta al asunto en cuestión y sustituyen todos los acuerdos anteriores, tanto orales como escritos, así como cualquier acuerdo entre RB y el usuario. | H20: As presentes Condições Gerais constituem o acordo integral entre a RB e o Utilizador em relação ao assunto em questão e substituem todos os acordos anteriores, sejam orais ou escritos, bem como quaisquer acordos entre a RB e o Utilizador.
A21: 20 | C21: 10. LINGUA | D21: 10. LANGUAGE | E21: 10. SPRACHE | F21: 10. LANGUE | G21: 10. IDIOMA | H21: 10. IDIOMA
A22: 21 | C22: In caso di divergenze tra versioni delle presenti condizioni nelle varie lingue, il testo italiano è vincolante e prevalente rispetto alle traduzioni. | D22: In the event of differences between versions of these conditions in the various languages, the Italian text is binding and takes precedence with respect to the translations. | E22: Im Falle von Unstimmigkeiten zwischen den Versionen dieser Bedingungen in den verschiedenen Sprachen gilt der italienische Wortlaut als bindend und als im Verhältnis zu den Übersetzungen vorrangig. | F22: En cas de divergence entre les versions des présentes conditions dans les différentes langues, le texte italien fait foi et prévaut sur les traductions. | G22: En caso de diferencias entre las versiones de estas condiciones en los distintos idiomas, el texto italiano es vinculante y prevalece con respecto a las traducciones. | H22: Em caso de divergências entre as versões das presentes Condições nas diferentes línguas, o texto italiano é vinculativo e prevalece sobre as traduções.
A23: 22 | C23: 11. DIRITTO APPLICABILE E FORO COMPETENTE | D23: 11. APPLICABLE LAW AND COURT OF JURISDICTION | E23: 11. GELTENDES RECHT UND GERICHTSSTAND | F23: 11. DROIT APPLICABLE ET TRIBUNAL COMPÉTENT | G23: 11. DERECHO APLICABLE Y TRIBUNAL COMPETENTE | H23: 11. LEGISLAÇÃO APLICÁVEL E FORO COMPETENTE
A24: 23 | C24: Il presente accordo e ogni rapporto tra le parti è regolato esclusivamente dal diritto italiano. Ogni controversia che dovesse insorgere tra le parti in relazione al presente accordo, che le stesse non siano in grado di risolvere amichevolmente, sarà di esclusiva competenza del foro di Bolzano. | D24: This agreement and any relationship between the parties is governed exclusively by the Italian law. Any dispute that may arise between the parties in relation to this agreement, that cannot be resolved amicably, shall be brought before the court of Bolzano. | E24: Diese Vereinbarung sowie jede Beziehung zwischen den Parteien wird ausschließlich durch das italienische Recht geregelt. Für alle Streitigkeiten, die zwischen den Parteien in Bezug auf diese Vereinbarung auftreten könnten und die diese nicht in der Lage sind, im gegenseitigen Einvernehmen beizulegen, ist ausschließlich das Gericht Bozen zuständig. | F24: Le présent accord et tout accord entre les parties est régi exclusivement par la loi italienne. Tout litige éventuel entre les parties concernant le présent accord qu'elles ne réussissent pas à résoudre à l'amiable relèvera de la compétence exclusive du tribunal de Bolzano. | G24: Este acuerdo y cualquier relación entre las partes se rigen exclusivamente por el derecho italiano. Cualquier controversia que surja entre las partes en relación con este acuerdo, que estas no sean capaces de resolver amigablemente, será competencia exclusiva de los tribunales de Bolzano. | H24: O presente acordo e qualquer relação entre as partes é regida exclusivamente pelo direito italiano. Qualquer litígio que possa surgir entre as partes em relação ao presente acordo, que não possam resolver amigavelmente, será da competência exclusiva do Tribunal de Bolzano.
A25: 24 | C25: 12. PRIVACY | D25: 12. PRIVACY | E25: 12. DATENSCHUTZ | F25: 12. CONFIDENTIALITÉ | G25: 12. PRIVACIDAD | H25: 12. PRIVACIDADE
A26: 25 | C26: Si rinvia alla privacy policy consultabile al link: | D26: Refer to the privacy policy available at the link: | E26: Hierzu wird auf die Datenschutzerklärung verwiesen, welche unter folgendem Link zur Verfügung steht: | F26: Voir la politique de confidentialité disponible au lien: | G26: Véase la política de privacidad disponible en el enlace: | H26: Por favor, consulte a Política de Privacidade disponível no link:
A27: 26 | C27: https://www.holztechnic.com/privacy-policy | D27: https://www.holztechnic.com/en/privacy-policy | E27: https://www.holztechnic.com/de/privacy-policy | F27: https://www.holztechnic.com/fr/privacy-policy | G27: https://www.holztechnic.com/es/privacy-policy | H27: https://www.holztechnic.com/pt/privacy-policy
A28: 27 | C28: ACCETTO | D28: ACCEPT | E28: AKZEPTIERE | F28: ACCEPTER | G28: ACEPTA | H28: ACEITE

Sheet TRADUZIONI (hidden)
A1: id | C1: Italiano | D1: English | E1: Deutsch | F1: Française | G1: Español | H1: Português
A2: 1 | C2: Lingua | D2: Language | E2: Sprache | F2: Langue | G2: Lengua | H2: Língua
A3: 2 | C3: GIUNZIONE TRAVE PRINCIPALE - TRAVE SECONDARIA CON CONNETTORI INCROCIATI GWZ | D3: JOIST-TO-HEADER CONNECTION WITH CROSSED GWZ CONNECTORS | E3: HAUPT-NEBENTRÄGER VERBINDUNG MIT GEKREUZTEN GWZ SCHRAUBEN | F3: CONNEXION POUTRE PRINCIPALE - POUTRE SECONDAIRE AVEC CONNECTEURS GWZ CROISÉES | G3: CONEXIÓN VIGA PRINCIPAL - VIGA SECUNDÁRIA CON CONECTORES GWZ CRUZADOS | H3: LIGAÇÃOVIGA PRINCIPAL / VIGA SECUNDÁRIA COM CONECTORES GWZ CRUZADOS
A4: 3 | C4: Tecnico Commerciale: | D4: Technical Salesman: | E4: Technischer Verkäufer: | F4: Technico Commercial: | G4: Técnico Comercial: | H4: Técnico Comercial:
A5: 4 | C5: Progetto: | D5: Project: | E5: Projekt: | F5: Projet: | G5: Proyecto: | H5: Projeto:
A6: 5 | C6: Giunzione n°: | D6: Connection n°: | E6: Position: | F6: Connexion no: | G6: Conexión N°: | H6: Ligação n°:
A7: 6 | C7: Note: | D7: Notes: | E7: Anmerkungen: | F7: Remarques: | G7: Notas: | H7: Notas:
A8: 7 | C8: Data: | D8: Date: | E8: Datum | F8: Date: | G8: Fecha: | H8: Data:
A9: 8 | C9: STAMPA RELAZIONE | D9: PRINT REPORT | E9: BERICHT DRUCKEN | F9: IMPRIMER RAPORT | G9: IMPRIMIR MEMORIA | H9: IMPRIMIR RELATÓRIO
A10: 9 | C10: STAMPA DISPOSIZIONE | D10: PRINT ARRANGEMENT | E10: SKIZZE DRUCKEN | F10: IMPRIMER DISPOSITION | G10: IMPRIMIR DISPOSICIÓN | H10: IMPRIMIR DISPOSIÇÃO
A11: 10
A12: 11 | C12: DATI DI PROGETTO E CARATTERISTICHE DEI MATERIALI | D12: DESIGN DATA AND MATERIAL PROPERTIES | E12: AUSLEGUNGSDATEN UND MATERIALEIGENSCHAFTEN | F12: DONNÉES DE CALCUL ET CARACTÉRISTIQUES DES MATÉRIAUX | G12: DATOS DE PROYECTO Y CARACTERÍSTICAS DE LOS MATERIALES | H12: DADOS DO PROJETO E CARACTERÍSTICAS DOS MATERIAIS
A13: 12 | C13: DISPOSIZIONE | D13: ARRANGEMENT | E13: ANORDNUNG | F13: DISPOSITION | G13: DISPOSICIÓN | H13: DISPOSIÇÃO
A14: 13 | C14: Norma di calcolo | D14: Calculation standard | E14: Berechnungsnorm | F14: Norme de référence | G14: Norma de cálculo | H14: Norma de cálculo
A15: 14 | C15: Classe di servizio | D15: Service classes | E15: Nutzungsklasse | F15: Classe de service | G15: Clase de servicio | H15: Classe de serviço
A16: 15 | C16: Classe di durata del carico variabile | D16: Load-duration class | E16: Lasteinwirkungsdauer | F16: Classe de durée de charge d'exploitation | G16: Categoría de uso prevista | H16: Categoria de uso
A17: 16
A18: 17 | C18: DATI GEOMETRICI | D18: GEOMETRIC DATA | E18: GEOMETRISCHE EINGABE | F18: DONNÉES GÉOMÉTRIQUES | G18: DATOS GEOMÉTRICOS | H18: DADOS GEOMÉTRICOS
A19: 18 | C19: Trave principale | D19: Main beam | E19: Hauptträger | F19: Poutre principale | G19: Viga principal | H19: Viga principal
A20: 19 | C20: Trave secondaria | D20: Secondary beam | E20: Nebenträger | F20: Poutre secondaire | G20: Viga secundária | H20: Viga secundária
A21: 20 | C21: Trave principale | D21: Main beam | E21: Haupt- träger | F21: Poutre principale | G21: Viga principal | H21: Viga principal
A22: 21 | C22: Trave secondaria | D22: Secondary beam | E22: Neben- träger | F22: Poutre secondaire | G22: Viga secundária | H22: Viga secundária
A23: 22 | C23: Inclinazione (angolo nel piano verticale) | D23: Angle in the vertical plane | E23: Neigung (Winkel in der vertikalen Ebene) | F23: Angle dans le plan vertical | G23: Inclinación (ángulo en el plano vertical) | H23: Inclinação (ângulo no plano vertical)
A24: 23
A25: 24 | B25: B | C25: Base della trave | D25: Beam width | E25: Trägerbreite | F25: Base de la poutre | G25: Base de la viga | H25: Largura da viga
A26: 25 | B26: H | C26: Altezza della trave | D26: Beam height | E26: Trägerhöhe | F26: Hauteur de la poutre | G26: Altura o canto de la viga | H26: Altura da viga
A27: 26 | C27: Legno | D27: Timber | E27: Holz | F27: Bois | G27: Madera | H27: Madeira
A28: 27 | C28: Classe di resistenza | D28: Timber strength class | E28: Festigkeitsklasse | F28: Classe de résistance | G28: Clase de resistencia | H28: Classe da resistência
A29: 28
A30: 29 | C30: produzioni soggette a controllo continuativo (COV <15%) | D30: [only for Italy - NTC2018] | Production subject to continuous control (COV < 15%) | E30: [nur für Italien - NTC2018] | kontinuierlich kontrollierte Produktionen (COV < 15%) | F30: [uniquement pour l'Italie - NTC2018] | Production soumise au control continu (COV < 15%) | G30: [solo para Italia - NTC2018] | Producciones sometids a controles continuos (COV <15%) | H30: [apenas para a Itália - NTC2018] | Produções submetidas a controles contínuos (VOC <15%)
A31: 30
A32: 31 | C32: SOLLECITAZIONI | D32: LOADS | E32: BELASTUNG | F32: SOLLICITATIONS | G32: SOLICITACIONES | H32: SOLICITAÇÕES
A33: 32 | B33: Vs,d | C33: Taglio sollecitante | D33: Design shear force | E33: Querkraft | F33: Effort de Cisaillement | G33: Cortante solicitante | H33: Corte solicitante
A34: 33 | C34: elemento sottoposto a flessione | D34: member in bending | E34: biegebeanspruchtes Bauteil | F34: FR_elemento sottoposto a flessione | G34: ES_elemento sottoposto a flessione | H34: PT_elemento sottoposto a flessione
A35: 34
A36: 35 | B36: fm,g,k | C36: Flessione | D36: Bending strength | E36: Biegung | F36: Contrainte de flexion | G36: Flexión | H36: Flexão
A37: 36 | B37: ft,0,g,k | C37: Trazione parallela alla fibratura | D37: Tensile strength along the grain | E37: Zug parallel zur Faser | F37: Contrainte de traction axiale | G37: Tracción paralela a las fibras | H37: Tração paralela às fibras
A38: 37 | B38: ft,90,g,k | C38: Trazione perpendicolare alla fibratura | D38: Tensile strength perpendicular to the grain | E38: Zug rechtwinklig zur Faser | F38: Contrainte de traction perpendiculaire | G38: Tracción perpendicular a las fibras | H38: Tração perpendicular às fibras
A39: 38 | B39: fc,0,g,k | C39: Compressione parallela alla fibratura | D39: Compressive strength along the grain | E39: Druck parallel zur Faser | F39: Contrainte de compression axiale | G39: Compresión paralela a las fibras | H39: Compressão paralela às fibras
A40: 39 | B40: fc,90,g,k | C40: Compressione perpendicolare alla fibratura | D40: Compressive strength perpendicular to the grain | E40: Druck rechtwinklig zur Faser | F40: Contrainte de compression perpendiculaire | G40: Compresión perpendicular a las fibras | H40: Compressão perpendicular às fibras
A41: 40 | B41: fv,g,k | C41: Taglio | D41: Shear | E41: Schub, Torsion | F41: Contrainte de cisaillement | G41: Cortante | H41: Corte
A42: 41 | B42: E0.g.mean | C42: Modulo elastico medio parallelo alle fibre | D42: Mean value of modulus of elasticity along the grain | E42: Elastizitätsmodul parallel | F42: Module moyen axial | G42: Módulo elástico medio paralelo a las fibras | H42: Módulo elástico médio paralelo às fibras
A43: 42 | B43: E0.g.0.5 | C43: Modulo elastico caratteristico parallelo alle fibre | D43: Characteristic value of modulus of elasticity along the grain | E43: E-Modul parallel | F43: Module axial au 5ème pourcentile | G43: Módulo elástico característico paralelo a las fibras | H43: Módulo elástico característico paralelo às fibras
A44: 43 | B44: E90.g.mean | C44: Modulo elastico medio perpendicolare alle fibre | D44: Mean value of modulus of elasticity perpendicular the grain | E44: Elastizitätsmodul rechtwinklig | F44: Module moyen transversal | G44: Módulo elástico medio perpendicular a las fibras | H44: Módulo elástico médio perpendicular às fibras
A45: 44 | B45: Gg,mean | C45: Modulo di taglio medio | D45: Mean value of shear modulus | E45: Schubmodul | F45: Module de cisaillement | G45: Módulo de cortante medio | H45: Módulo de corte médio
A46: 45 | B46: ρg,k | C46: Massa volumica caratteristica | D46: 5 percentile density | E46: Charakteristische Rohdichte | F46: Masse volumique caractéristique | G46: Densidad característica | H46: Densidade característica
A47: 46 | B47: ρmean | C47: Massa volumica media | D47: Mean density | E47: Durchschnittliche Rohdichte | F47: Masse volumique moyenne | G47: Densidad media | H47: Densidade média
A48: 47 | B48: γm, legno | C48: Coefficiente parziale di sicurezza - legno | D48: Timber Safety factor | E48: Teilsicherheitsbeiwert für Holz | F48: Coefficient partiel relatif au matériau - bois | G48: Coeficiente parcial de seguridad | H48: Coeficiente de segurança parcial
A49: 48 | B49: γm, connessione | C49: Coefficiente parziale di sicurezza - connessione | D49: Connection Safety factor | E49: Teilsicherheitsbeiwert für die Verbindung | F49: Coefficient partiel de sécurité - connexion | G49: Coeficiente parcial de seguridad | H49: Coeficiente de segurança parcial
A50: 49 | B50: kdef | C50: Coefficiente di deformazione | D50: Deformation factor | E50: Verformungsbeiwert | F50: Facteur de modification des déformations | G50: Coeficiente de deformación | H50: Coeficiente de deformação
A51: 50 | B51: kmod | C51: Coefficiente di correzione per la durata del carico e per l'umidità | D51: Modification factor | E51: Modifikationsbeiwert | F51: Facteur modificatif (fonction de durée d'application charges-humidité moyenne) | G51: Coeficiente de corrección por la duración de la carga y la humedad | H51: Coeficiente de correção por duração de carga e humidade
A52: 51 | B52: ψ2 | C52: Coefficienti di combinazione | D52: Combination factor | E52: Kombinationsbeiwert | F52: Facteur de fluage et combinaison accidentelle | G52: Coeficiente de combinación | H52: Coeficiente de combinação
A53: 52 | B53: kcr | C53: Coefficiente di fessurazione per la resistenza a taglio | D53: Crack factor for shear resistance | E53: Rissfaktor für die Beanspruchbarkeit auf Schub | F53: Coefficient des fissures pour la résistance au cisaillement | G53: Coeficiente de influencia de fendas o fisuras | H53: Fator de fissura pela resistência a corte
A54: 53 | B54: γm, 1/2 | C54: Coefficiente parziale di sicurezza - acciaio | D54: Steel Safety factor | E54: Teilsicherheitsbeiwert für Stahl | F54: Coefficient partiel relatif au matériau - acier | G54: Coeficiente parcial de seguridad - acero | H54: Coeficiente de segurança parcial - aço
A55: 54 | C55: CONNETTORI | D55: FASTENERS TYPE | E55: VERBINDER | F55: CONNECTEURS | G55: CONECTORES | H55: CONECTORES
A56: 55 | C56: Tipo connettore | D56: Fastener type | E56: Verbindertyp | F56: Type de connecteur | G56: Tipo de conector | H56: Tipo conector
A57: 56 | C57: N° coppie | D57: N° of pairs | E57: Anz. Paare | F57: Nbre couple de vis | G57: Número de pares | H57: Número de pares
A58: 57 | C58: Disposizione dei connettori | D58: Arrangement | E58: Anordnung | F58: Disposition | G58: Disposición | H58: Disposição
A59: 58 | C59: 45° (connettori incrociati) | D59: Inclined crossed fasteners 45° | E59: Gekreuzte Verbinder 45° | F59: 45° (connecteurs croisés) | G59: 45° (conectores cruzados) | H59: 45° (conectores cruzados)
A60: 59 | C60: Posizionamento connettori sulla trave | D60: Screw position | E60: Schraubenposition | F60: Position des vis | G60: Posición tornillos | H60: Posição parafusos
A61: 60 | C61: GWZ interne (al centro della trave) | D61: Internal GWZ (in the middle of the beam) | E61: Interne GWZ (mittig) | F61: GWZ internes (au milieu de la poutre) | G61: GWZ internos (en el centro de la viga) | H61: GWZ internos (no meio da viga)
A62: 61 | C62: GWZ esterne (in prossimità del bordo) | D62: External GWZ (near the edge) | E62: Externe GWZ (in Randnähe) | F62: GWZ externes (près du bord) | G62: GWZ externos (cerca del borde) | H62: GWZ externos (perto da borda)
A63: 62 | C63: Selezione non valida | D63: Invalid selection | E63: Ungültige Auswahl | F63: Selection invalide | G63: Selección invalida | H63: Seleção inválida
A64: 63 | C64: VERIFICA DELLA CONNESSIONE | D64: FASTENER VERIFICATION | E64: Nachweis des Verbinders | F64: VÉRIFICATION DE LA CONNEXION | G64: COMPROBACIÓN DE LA CONEXIÓN | H64: VERIFICAÇÃO DA CONEXÃO
A65: 64 | C65: Resistenza | D65: Resistance | E65: Tragfähigkeit | F65: Résistance | G65: Resistencia | H65: Resistência
A66: 65 | C66: Geometria | D66: Geometry | E66: Geometrie | F66: Géométrie | G66: Geometría | H66: Geometria
A67: 66 | C67: Per maggiori dettagli sulle verifiche si vedano i punti 2 e 3. | D67: Please see points 2 and 3 for more details. | E67: Siehe Punkte 2 und 3 für weitere Einzelheiten zu den Nachweisen | F67: Pour plus d'informations concernant les vérifications, voir le point 2 et le point 3 | G67: Para mayor detalle sobre las comprobaciones, véase el punto 2 y el punto 3. | H67: Para mais detalhes sobre as verificações, consulte o ponto 2 e ponto 3.
A68: 67
A69: 68 | B69: d1 | C69: Diametro nominale | D69: Diameter | E69: Nenndurchmesser | F69: Diamètre nominal | G69: Diámetro nominal | H69: Diâmetro nominal
A70: 69 | B70: d2 | C70: Diametro nocciolo | D70: Inner thread diameter | E70: Kerndurchmesser | F70: Diamètre noyau | G70: Diámetro núcleo | H70: Diâmetro do núcleo
A71: 70 | B71: dk | C71: Diametro testa | D71: Head diameter | E71: Kopfdurchmesser | F71: Diamètre tête | G71: Diámetro cabeza | H71: Diâmetro da cabeça
A72: 71 | B72: L | C72: Lunghezza | D72: Length | E72: Länge | F72: Longueur | G72: Longitud | H72: Comprimento
A73: 72 | B73: sg | C73: Lunghezza filetto | D73: Thread lenght | E73: Gewindelänge | F73: Longueur filetage | G73: Longitud rosca | H73: Comprimento da rosca
A74: 73 | B74: fax,k | C74: Parametro caratteristico estrazione | D74: Withdrawal charecteristic parameter | E74: Charakteristischer Auszugswiderstand | F74: Resistance caractéristique à l'arrachement | G74: Parámetro característico a extracción | H74: Parâmetro característico á extração
A75: 74 | B75: ρa,ax | C75: Densità associata | D75: Associated density | E75: Zugehörige Holzdichte | F75: Densité associée | G75: Densidad asociada | H75: Densidade associada
A76: 75 | B76: ftens,k = Rt,u,k | C76: Resistenza caratteristica a trazione | D76: Characteristic tensile strength | E76: Charakteristische Zugfestigkeit | F76: Résistances caractéristiques à la traction du béton (fractile 5%) | G76: Resistencia característica a tracción | H76: Resistência característica à tração
A77: 76 | B77: fy,k | C77: Resistenza caratteristica a snervamento | D77: Characteristic yield strength | E77: Charakteristischer Wert der Streckgrenze | F77: Limite d’élasticité caractéristique | G77: Resistencia característica de esfuerzo plástico | H77: Resistência característica à tensão
A78: 77 | C78: VERIFICHE DI RESISTENZA | D78: STRENGTH VERIFICATIONS | E78: NACHWEIS DER TRAGFÄHIGKEIT | F78: VÉRIFICATION DES RÉSISTANCES | G78: COMPROBACIONES DE RESISTENCIA | H78: VERIFICAÇÕES DE RESISTÊNCIA
A79: 78 | C79: CONNESSIONE | D79: FASTENER | E79: VERBINDUNG | F79: CONNEXION | G79: CONEXIÓN | H79: Conexão
A80: 79 | B80: α | C80: Angolo vite / fibre | D80: Angle screw / grain | E80: Winkel Schraube / Faserrichtung | F80: Angle vis / fil du bois | G80: Ángulo tornillo/fibra | H80: Ângulo fibra / parafuso
A81: 80 | B81: R ax,α,k | C81: Resistenza caratteristica ad estrazione della vite | D81: Withdrawal characteristic resistance of screws | E81: Charakterischer Ausziehwiderstand der Schraube | F81: Résistance caractéristique à l’arrachement des vis | G81: Resistencia característica a extracción de los tornillos | H81: Resistência característica à extracção dos parafusos
A82: 81 | B82: n ef | C82: Numero efficace | D82: Effective number | E82: Wirksame Anzahl | F82: Nombre efficace | G82: Número eficaz | H82: Número eficaz
A83: 82 | B83: R V,k | C83: Resistenza caratteristica a taglio verticale | D83: Shear characteristic resistance | E83: Charakt. Wert der Tragfähigkeit auf Abscheren | F83: Résistance caractéristique au cisaillement | G83: Resistencia característica a cortante | H83: Resistência característica ao corte
A84: 83 | B84: R V,d | C84: Resistenza di progetto della connessione | D84: Fastener design shear resistance | E84: Bemessungswiderstand der Verbindung | F84: Resistance de calcul de la connexion | G84: Resistencia de proyecto de la conexión | H84: Resistência de projeto da conexão
A85: 84 | C85: VERIFICA A TAGLIO | D85: SHEAR STRESS VERIFICATIONS | E85: Spannungsprüfung - Schub | F85: VÉRIFICATION DES TENSIONS - CISAILLEMENT | G85: Comprobación de esfuerzos - Cortante | H85: Verificação de esforços - Corte
A86: 85 | B86: τL,max | C86: Tensione massima a taglio sulla trave secondaria | D86: Timber: max shear stress on secondary beam | E86: Maximale Scherspannung auf dem Nebenträger | F86: Tension maximale de cisaillement sur la poutre secondaire | G86: Tensiones máximas de cortante sobre la viga secundária | H86: Tensões máximas de corte na viga secundária
A87: 86 | B87: f v,d | C87: Resistenza di progetto a taglio | D87: Design shear strength | E87: Bemessungswert der Schubfestigkeit | F87: Résistance de calcul au cisaillement | G87: Resistencia de proyecto a corte | H87: Resistência de cálculo a corte
A88: 87 | C88: TAGLIO | D88: SHEAR | E88: SCHUB | F88: CISAILLEMENT | G88: CORTANTE | H88: CORTE
A89: 88 | C89: VERIFICHE GEOMETRICHE | D89: GEOMETRIC CHECKS | E89: NACHWEIS DER GEOMETRIE | F89: CONTRÔLES GÉOMÉTRIQUES | G89: CONTROLES GEOMÉTRICOS | H89: VERIFICAÇÕES GEOMÉTRICAS
A90: 89 | C90: Dimensione minima | D90: Minimum dimension | E90: Mindestmaß | F90: Taille minimum | G90: Talla minima | H90: Tamanho mínimo
A91: 90 | C91: Aumentare B o riprogettare la connessione | D91: Please change B or redesign the connection | E91: B erhöhen oder Verbindung neu designen | F91: Augmenter B ou recalculer la connexion | G91: Aumentar B o rediseñar la conexión | H91: Aumentar B ou redesenhar a conexão
A92: 91 | C92: Aumentare H o riprogettare la connessione | D92: Please change H or redesign the connection | E92: H erhöhen oder Verbindung neu designen | F92: Augmenter H ou recalculer la connexion | G92: Aumentar H o rediseñar la conexión | H92: Aumentar H ou redesenhar a conexão
A93: 92 | C93: Diminuire l'inclinazione della trave secondaria (β ≤ 15°) | D93: Please decrease β (β ≤ 15°) | E93: β verringern (β ≤ 15 °) | F93: Diminuer β (β ≤ 15 °) | G93: Disminuir β (β ≤ 15 °) | H93: Diminuir β (β ≤ 15 °)
A94: 93 | C94: N° TOTALE DI CONNETTORI GWZ PER GIUNZIONE | D94: TOTAL NUMBER OF CONNECTORS GWZ PER CONNECTION | E94: GESAMTZAHL DER VERBINDER GWZ PRO VERBINDUNG | F94: NBRE TOTALE DES CONNECTEURS GWZ PAR CONNEXION | G94: n° TOTAL DE CONECTORES GWZ POR CONEXIÓN | H94: CONECTORES GWZ TOTAIS POR LIGAÇÃO
A95: 94 | C95: coppia | D95: pair | E95: Paar | F95: paire | G95: par | H95: par
A96: 95 | C96: coppie | D96: pairs | E96: Paare | F96: paires | G96: pares | H96: pares
A97: 96 | C97: pz. | D97: pcs. | E97: Stk. | F97: pcs. | G97: unid. | H97: unid.
A98: 97 | C98: pianta | D98: plan | E98: Draufsicht | F98: plan | G98: planta | H98: planta
A99: 98 | C99: sezione | D99: section | E99: Querschnitt | F99: section | G99: sección | H99: secção
A100: 99 | C100: Immagini a scopo illustrativo | D100: Images for illustration purpose only | E100: Alle Abbildungen dienen lediglich illustrativen Zwecken | F100: Images à des fins d'illustration | G100: Imágenes con fines ilustrativos | H100: Imagens para fins ilustrativos
A101: 100 | C101: Angolo di inserimento connettori (rispetto al piano di taglio) | D101: Insertion angle | E101: Einschraubwinkel | F101: Angle d'insertion | G101: Ángulo de inserción tornillos | H101: Ângulo de inserção
A102: 101 | C102: Quota di montaggio | D102: Assembly quota | E102: Einschraubmaß | F102: Cote de montage | G102: Dimensión de montaje | H102: Quota de montagem
A103: 102 | C103: Lunghezza di affossamento | D103: Head buried | E103: Versenkung | F103: Enfoncement | G103: Hundimiento | H103: Afundamento
A104: 103 | C104: I connettori devono essere inseriti dal bordo laterale anziché dall'estradosso della trave principale. | D104: The connectors must be inserted from the lateral edge instead of from the upper side of the main beam. | E104: Die Verbinder müssen von der Seitenkante des Hauptträgers anstatt von der Oberkante eingeschraubt werden. | F104: Les connecteurs doivent être insérés par le bord latéral plutôt que par l’extrados de la poutre principale. | G104: Los conectores deben insertarse desde el borde lateral en lugar de desde el extradós de la viga principal. | H104: Os conectores devem ser inseridos pela borda lateral, e não pela face superior ou inferior da viga principal.
A105: 104 | C105: Le quote di installazione sono da valutare separatamente. | D105: The installation quotas are to be evaluated separately. | E105: Die Einschraubmaße sind gesondert zu bestimmen. | F105: Les espacements d'installation doivent être évalués séparément. | G105: Las cotas de instalación se deben evaluar por separado. | H105: As cotas de instalação devem ser avaliadas separadamente.
A106: 105 | C106: La resistenza della connessione deve essere rivalutata in base alla geometria reale. | D106: The resistance of the connection must be re-evaluated based on the real geometry. | E106: Die Tragfähigkeit der Verbindung muss entsprechend der tatsächlichen Geometrie neu bewertet werden. | F106: La résistance de la connexion doit être réévaluée en fonction de la géométrie réelle. | G106: La resistencia de la conexión debe reevaluarse de acuerdo con la geometría real. | H106: A resistência da conexão deve ser reavaliada com base na geometria real.
A107: 106 | B107: Rki,k | C107: Resistenza caratteristica ad instabilità | D107: Characteristic buckling resistance | E107: Charakterischer Widerstand der Schrauben gegen Knicken | F107: Résistance caractéristique à l’instabilité | G107: Resistencia característica a la inestabilidad | H107: Resistência característica à instabilidade
A108: 107
A109: 108 | B109: a2,CG | C109: Distanza del baricentro della parte filettata della vite nel legno dal bordo | D109: Distance from centre of the screw-part in timber to the edge | E109: Abstand zum Schwerpunkt des Schraubengewindes vom Rand | F109: Distance entre le centre de la partie de la vis dans le bois et le bord | G109: Distancia desde el centro de la pieza roscada en madera hasta el borde | H109: Distância do centro da parte do parafuso na madeira ao rebordo
A110: 109 | B110: a2 | C110: Spaziatura perpendicolare alla fibratura | D110: Spacing perpendicular to the grain | E110: Achsabstand der Schrauben untereinander rechtwinklig zur Faserrichtung | F110: Entraxe perpendiculaire au fil | G110: Separación perpendicular al grano | H110: Espaçamento perpendicular ao grão
A111: 110 | B111: aCROSS | C111: Distanza fra i connettori incrociati | D111: Spacing between the crossing screws | E111: Abstand zwischen den gekreuzten Schrauben | F111: Entraxe entre les vis croisées | G111: Distancia entre los tornillos cruzados | H111: Espaçamento entre os parafusos cruzados
A112: 111 | B112: e | C112: Distanza fra coppie di connettori incrociati | D112: Spacing between pairs of crossing screws | E112: Abstand zwischen gekreuzten Schraubenpaaren | F112: Entraxe entre paires de vis croisées | G112: Distancia entre pares de los tornillos cruzados | H112: Espaçamento entre pares de parafusos cruzados
A113: 112 | C113: E' possibile disporre i connettori in maniera differente nel rispetto delle distanze minime. | D113: It is possible to arrange the connectors differently respecting the minimum distances. | E113: Die Verbinder dürfen unter Berücksichtigung der Mindestabstände unterschiedlich angeordnet werden. | F113: Il est possible de disposer les connecteurs différemment en respectant les distances minimales. | G113: Es posible organizar los conectores de una manera diferente respetando las distancias mínimas. | H113: É possível organizar os conectores de modo diferente, respeitando as distâncias mínimas.
A114: 113
A115: 114 | C115: Distanze minime dei connettori | D115: Minimum distances | E115: Mindestabstände der Schrauben | F115: Distances minimales connecteurs | G115: Distancias mínimas de los conectores | H115: Distâncias mínimas dos conectores
A116: 115 | B116: a2,CG,MIN | C116: Distanza minima del baricentro della parte filettata della vite nel legno dal bordo | D116: Minimum distance from centre of the screw-part in timber to the edge | E116: Mindestabstand zum Schwerpunkt des Schraubengewindes vom Rand | F116: Minimal distance entre le centre de la partie de la vis dans le bois et le bord | G116: Minima distancia desde el centro de la pieza roscada en madera hasta el borde | H116: Minima distância do centro da parte do parafuso na madeira ao rebordo
A117: 116 | B117: a2,MIN | C117: Minima spaziatura perpendicolare alla fibratura | D117: Minimum spacing perpendicular to the grain | E117: Mindestachsabstand der Schrauben untereinander rechtwinklig zur Faserrichtung | F117: Minimal entraxe perpendiculaire au fil | G117: Minima separación perpendicular al grano | H117: Minimo espaçamento perpendicular ao grão
A118: 117 | B118: aCROSS,MIN | C118: Distanza minima fra i connettori incrociati | D118: Minimum spacing between the crossing screws | E118: Mindestabstand zwischen den gekreuzten Schrauben | F118: Minimal entraxe entre les vis croisées | G118: Minima distancia entre los tornillos cruzados | H118: Minimo espaçamento entre os parafusos cruzados
A119: 118 | B119: e,MIN | C119: Distanza minima fra coppie di connettori incrociati | D119: Minimum spacing between pairs of crossing screws | E119: Mindestabstand zwischen gekreuzten Schraubenpaaren | F119: Minimal entraxe entre paires de vis croisées | G119: Minima distancia entre pares de los tornillos cruzados | H119: Minimo espaçamento entre pares de parafusos cruzados
A120: 119
A121: 120 | C121: INIZIO | D121: START | E121: START | F121: RETOURNER | G121: INICIO | H121: INÍCIO
A122: 121
A123: 122 | C123: Permanente | D123: Permanent load | E123: Ständig | F123: Permanente | G123: Permanente | H123: Permanente
A124: 123 | C124: Lunga durata | D124: Long-term variable load | E124: Lang | F124: Long terme | G124: Larga duración | H124: Longa duração
A125: 124 | C125: Media durata | D125: Medium-term variable load | E125: Mittel | F125: Moyen terme | G125: Media duración | H125: Meia duração
A126: 125 | C126: Breve durata | D126: Short-term variable load | E126: Kurz | F126: Court terme | G126: Corta duración | H126: Curta duração
A127: 126 | C127: Istantaneo | D127: Instantaneous variable load | E127: Sehr kurz | F127: Instantanée | G127: Instantánea | H127: Instantânea
A128: 127
A129: 128
A130: 129 | C130: GWZ_Relazione
A131: 130 | C131: GWZ_Disposizione
A132: 131
A133: 132 | C133: Valore massimo | D133: Maximum value | E133: Maximalwert | F133: Valeur maximum | G133: Valor máximo | H133: Valor máximo
A134: 133
A135: 134 | C135: Dimensionamento_GWZ | D135: Design_report_GWZ | E135: Bericht_GWZ | F135: Raport_GWZ | G135: Memoria_GWZ | H135: Relatório_GWZ
A136: 135 | C136: Disposizione_GWZ | D136: Arrangement_GWZ | E136: Skizze_GWZ | F136: Disposition_GWZ | G136: Disposición_GWZ | H136: Disposição_GWZ
A137: 136 | C137: Il file PDF è stato salvato. | D137: The PDF file has been saved | E137: Das PDF wurde gespeichert | F137: Le fichier PDF a été enregistré | G137: El archivo PDF ha sido guardado | H137: O arquivo PDF foi salvo
A138: 137 | C138: Non è stato possibile salvare il file PDF. | D138: The PDF file could not be saved. | E138: Das PDF konnte nicht gespeichert werden. | F138: Le fichier PDF n'a pas pu être enregistré. | G138: El archivo PDF no se pudo guardar. | H138: O arquivo PDF não pôde ser salvo.
A139: 138
A140: 139
A141: 140 | C141: VERIFICATO | D141: VERIFIED | E141: NACHWEIS ERBRACHT | F141: VÉRIFIÉE | G141: VERIFICADO | H141: VERIFICADO
A142: 141
A143: 142 | C143: NON VERIFICATO | D143: NOT VERIFIED | E143: NACHWEIS NICHT ERBRACHT | F143: NON VÉRIFIÉE | G143: NO VERIFICADO | H143: NÃO VERIFICADO
A144: 143
A145: 144 | C145: RB ha svolto le verifiche secondo il metodo degli Stati Limite in accordo EN 1995-1-1 Eurocodice 5-Progettazione delle strutture di legno. | D145: RB carried out the checks according to the Limit State method in accordance with EN 1995-1-1 Eurocode 5 - Design of timber structures. | E145: RB hat die Prüfungen gemäß Grenzzustandsmethode laut DIN EN 1995-1-1 Eurocode 5 - Bemessung und Konstruktion von Holzbauten vorgenommen. | F145: RB a effectué les vérifications selon la méthode des états-limites conformément à l'Eurocode 5 EN 1995-1-1 Conception et calcul des structures en bois. | G145: RB ha efectuado las comprobaciones según el método de los estados límite de acuerdo con la norma EN 1995-1-1 Eurocódigo 5 - Proyecto de estructuras de madera. | H145: A RB efetuou as verificações segundo o método dos Estados-Limite em conformidade com a EN 1995-1-1 Eurocódigo 5 - Conceção de estruturas de madeira. | I145: (da CTC_calc)
A146: 145 | C146: Per i valori di resistenza meccanica e per la geometria delle viti si è fatto riferimento a quanto riportato in ETA-12/0471. | D146: For the mechanical resistance values and the geometry of the connectors, reference was made to ETA-12/0471. | E146: Bei den Werten für die mechanische Festigkeit und die Geometrie der Verbinder wurde auf die Angaben in der ETA-12/0471 Bezug genommen. | F146: Pour les valeurs de résistance mécanique et pour la géométrie des connecteurs, il a été fait référence à ce qui est reporté dans ETA-12/0471. | G146: Para los valores de resistencia mecánica y para la geometría de los conectores se han tomado como referencia las indicaciones de ETA-12/0471. | H146: Para os valores de resistência mecânica e para a geometria dos conectores, fez-se referência ao que consta da ETA-12/0471. | I146: (da Viti2019)
A147: 146 | C147: Per i valori di resistenza meccanica e per la geometria delle viti si è fatto riferimento a quanto riportato in ETA. | D147: For the mechanical resistance values and the geometry of the connectors, reference was made to ETA. | E147: Bei den Werten für die mechanische Festigkeit und die Geometrie der Verbinder wurde auf die Angaben in der ETA Bezug genommen. | F147: Pour les valeurs de résistance mécanique et pour la géométrie des connecteurs, il a été fait référence à ce qui est reporté dans ETA. | G147: Para los valores de resistencia mecánica y para la geometría de los conectores se han tomado como referencia las indicaciones de ETA. | H147: Para os valores de resistência mecânica e para a geometria dos conectores, fez-se referência ao que consta da ETA. | I147: (da Viti2019)
A148: 147 | C148: Il dimensionamento e la verifica degli elementi in legno devono essere svolti a parte. | D148: Dimensioning and veriication of the timber elements must be carried out separately. | E148: Die Bemessung und Überprüfung der Holzelemente müssen getrennt durchgeführt werden. | F148: Le dimensionnement et la vériication des éléments en bois seront efectués séparément. | G148: El dimensionamiento y la comprobación de los elementos de madera deben efectuarse aparte. | H148: A dimensão e a veriicação dos elementos de madeira devem ser feitas à parte. | I148: (da Piastre2020)
A149: 148 | C149: Prima dell'esecuzione, tutti i calcoli devono essere verificati ed approvati dal progettista responsabile. | D149: Before the construction, all calculation must be verified and approved by the responsible designer. | E149: Vor der Ausführung, sind alle Berechnungen vom verantwortlichen Designer zu überprüfen und zu genehmigen. | F149: Avant l'exécution, tous les calculs doivent être vérifiés et approuvés par le concepteur responsable. | G149: Antes de la ejecución, todos los cálculos deben ser comprobados y aprobados por el proyectista responsable. | H149: Antes da execução, todos os cálculos devem ser verificados e aprovados pelo projetista responsável. | I149: (da myp)
A150: 149 | C150: È dovere del progettista responsabile verificare ad ogni utilizzo la conformità dei dati alla normativa vigente e al progetto. La responsabilità ultima della scelta del prodotto adeguato per una specifica applicazione spetta al progettista. | D150: The designer are responsible to verify, at each use, the conformity of the data to the regulations in force and to the project. Before the construction, all calculation must be verified and approved by the responsible designer. The ultimate responsibility for choosing the appropriate product for a speciic application lies with the designer. | E150: Es ist die Plicht des verantwortlichen Designers, bei jeder Nutzung die Übereinstimmung der Daten mit den geltenden Vorschriften und dem Projekt zu überprüfen. Die letztendliche Verantwortung für die Auswahl des geeigneten Produkts für eine bestimmte Anwendung liegt beim Designer. | F150: Le concepteur responsable ont le devoir de vériier, à chaque utilisation, la conformité des données à la règlementation en vigueur et au projet. La responsabilité ultime du choix du produit approprié pour une application spéciique incombe au concepteur. | G150: Es deber del proyectista responsable comprobar en cada uso que los datos sean conformes con la normativa vigente y con el proyecto. La responsabilidad final de elegir el producto adecuado para una aplicación específica recae en el usuario/proyectista. | H150: É dever do projetista responsável verificar em cada utilização a conformidade dos dados com as normas em vigor e com o projeto. A responsabilidade final pela escolha do produto adequado para uma aplicação específica cabe ao projetista. | I150: (da Piastre2020)
A151: 150
A152: 151
A153: 152
A154: 153
A155: 154
A156: 155
A157: 156
A158: 157
A159: 158
A160: 159
A161: 160
A162: 161
A163: 162
A164: 163
A165: 164
A166: 165
A167: 166
A168: 167
A169: 168
A170: 169
A171: 170
A172: 171
A173: 172
A174: 173
A175: 174
A176: 175
A177: 176
A178: 177
A179: 178
A180: 179
A181: 180
A182: 181
A183: 182
A184: 183
A185: 184
A186: 185
A187: 186
A188: 187
A189: 188
A190: 189
A191: 190
A192: 191
A193: 192
A194: 193
J228: come da CTC
J229: nuovo rispetto a CTC (spesso copiato da MyP)

Sheet DATA (hidden)
A1: Tendina Norma | B1: Tendina Lingue | C1: Tendina materiale | E1: Tend. cl. serv. | F1: Tendinda durata carico | G1: Tend. nr. coppie | H1: Tendina GWZ | K1: Tendina Posizionamento | N1: TESTO PER STAMPA PDF
A3: EN 1995:2014-1-1 | B3: IT | C3: GL 22c (EN 14080:2013) | E3: 1 | F3: =INDEX(TRADUZIONI!$A$2:$H$193,TRADUZIONI!A123,REPORT!$A$4) -> Permanente | G3: 1 | H3: =MATCH(MIN(REPORT!G40,REPORT!G34),DATA!F95:F110,1) -> 8 | I3: =IF($H$3>=J3,INDEX($B$95:$B$117,J3),"") -> GWZ6140 | J3: 1 | K3: =INDEX(TRADUZIONI!$A$2:$H$193,TRADUZIONI!A61,REPORT!$A$4) -> GWZ interne (al centro della trave) | N3: =INDEX(TRADUZIONI!$A$2:$H$193,P3,REPORT!$A$4) -> Dimensionamento_GWZ | P3: 134
A4: NTC2018 | B4: EN | C4: GL 24c (EN 14080:2013) | E4: 2 | F4: =INDEX(TRADUZIONI!$A$2:$H$193,TRADUZIONI!A124,REPORT!$A$4) -> Lunga durata | G4: 2 | I4: =IF($H$3>=J4,INDEX($B$95:$B$117,J4),"") -> GWZ6160 | J4: 2 | K4: =INDEX(TRADUZIONI!$A$2:$H$193,TRADUZIONI!A62,REPORT!$A$4) -> GWZ esterne (in prossimità del bordo) | N4: =INDEX(TRADUZIONI!$A$2:$H$193,P4,REPORT!$A$4) -> Disposizione_GWZ | P4: 135
B5: DE | C5: GL 28c (EN 14080:2013) | F5: =INDEX(TRADUZIONI!$A$2:$H$193,TRADUZIONI!A125,REPORT!$A$4) -> Media durata | G5: 3 | H5: Si idfentificano solo i codici idonei in base ad h NT | I5: =IF($H$3>=J5,INDEX($B$95:$B$117,J5),"") -> GWZ6180 | J5: 3 | N5: =INDEX(TRADUZIONI!$A$2:$H$193,P5,REPORT!$A$4) -> Il file PDF è stato salvato. | P5: 136
B6: FR | C6: GL 22h (EN 14080:2013) | F6: =INDEX(TRADUZIONI!$A$2:$H$193,TRADUZIONI!A126,REPORT!$A$4) -> Breve durata | I6: =IF($H$3>=J6,INDEX($B$95:$B$117,J6),"") -> GWZ6200 | J6: 4 | N6: =INDEX(TRADUZIONI!$A$2:$H$193,P6,REPORT!$A$4) -> Non è stato possibile salvare il file PDF. | P6: 137
B7: ES | C7: GL 24h (EN 14080:2013) | F7: =INDEX(TRADUZIONI!$A$2:$H$193,TRADUZIONI!A127,REPORT!$A$4) -> Istantaneo | I7: =IF($H$3>=J7,INDEX($B$95:$B$117,J7),"") -> GWZ8200 | J7: 5
B8: PT | C8: GL 28h (EN 14080:2013) | I8: =IF($H$3>=J8,INDEX($B$95:$B$117,J8),"") -> GWZ6220 | J8: 6
C9: C14 (EN 338:2016) | I9: =IF($H$3>=J9,INDEX($B$95:$B$117,J9),"") -> GWZ8220 | J9: 7
C10: C16 (EN 338:2016) | I10: =IF($H$3>=J10,INDEX($B$95:$B$117,J10),"") -> GWZ8240 | J10: 8
C11: C18 (EN 338:2016) | I11: =IF($H$3>=J11,INDEX($B$95:$B$117,J11),"") ->  | J11: 9
C12: C20 (EN 338:2016) | I12: =IF($H$3>=J12,INDEX($B$95:$B$117,J12),"") ->  | J12: 10
C13: C22 (EN 338:2016) | I13: =IF($H$3>=J13,INDEX($B$95:$B$117,J13),"") ->  | J13: 11
C14: C24 (EN 338:2016) | I14: =IF($H$3>=J14,INDEX($B$95:$B$117,J14),"") ->  | J14: 12
C15: C27 (EN 338:2016) | I15: =IF($H$3>=J15,INDEX($B$95:$B$117,J15),"") ->  | J15: 13
C16: C30 (EN 338:2016) | I16: =IF($H$3>=J16,INDEX($B$95:$B$117,J16),"") ->  | J16: 14
I17: =IF($H$3>=J17,INDEX($B$95:$B$117,J17),"") ->  | J17: 15
I18: =IF($H$3>=J18,INDEX($B$95:$B$117,J18),"") ->  | J18: 16
A21: LEGNO LAMELLARE E MASSICCIO
D22: GL 22c | E22: GL 24c | F22: GL 28c | G22: GL 22h | H22: GL 24h | I22: GL 28h | J22: C 14 | K22: C 16 | L22: C 18 | M22: C 20 | N22: C 22 | O22: C 24 | P22: C 27 | Q22: C 30
A23: Norma | D23: (EN 14080:2013) | E23: (EN 14080:2013) | F23: (EN 14080:2013) | G23: (EN 14080:2013) | H23: (EN 14080:2013) | I23: (EN 14080:2013) | J23: (EN 338:2016) | K23: (EN 338:2016) | L23: (EN 338:2016) | M23: (EN 338:2016) | N23: (EN 338:2016) | O23: (EN 338:2016) | P23: (EN 338:2016) | Q23: (EN 338:2016)
A24: Moduli di elasticità | R24: Moduli di elasticità
A25: mod. elast. parall. medio | B25: E0,mean | C25: MPa | D25: 10400 | E25: 11000 | F25: 12500 | G25: 10500 | H25: 11500 | I25: 12600 | J25: 7000 | K25: 8000 | L25: 9000 | M25: 9500 | N25: 10000 | O25: 11000 | P25: 11500 | Q25: 12000 | R25: mod. elast. parall. medio | T25: E0,mean | U25: MPa
A26: mod. elast. parall. caratt. | B26: E0,05 | C26: MPa | D26: 8600 | E26: 9100 | F26: 10400 | G26: 8800 | H26: 9600 | I26: 10500 | J26: 4700 | K26: 5400 | L26: 6000 | M26: 6400 | N26: 6700 | O26: 7400 | P26: 7700 | Q26: 8000 | R26: mod. elast. parall. caratt. | T26: E0,05 | U26: MPa
A27: mod. elast. ortog. medio | B27: E90,mean | C27: MPa | D27: 300 | E27: 300 | F27: 300 | G27: 300 | H27: 300 | I27: 300 | J27: 230 | K27: 270 | L27: 300 | M27: 320 | N27: 330 | O27: 370 | P27: 380 | Q27: 400 | R27: mod. elast. ortog. medio | T27: E90,mean | U27: MPa
A28: modulo di taglio medio | B28: Gmean | C28: MPa | D28: 650 | E28: 650 | F28: 650 | G28: 650 | H28: 650 | I28: 650 | J28: 440 | K28: 500 | L28: 560 | M28: 590 | N28: 630 | O28: 690 | P28: 720 | Q28: 750 | R28: modulo di taglio medio | T28: Gmean | U28: MPa
A29: Valori caratteristici di resistenza | R29: Valori caratteristici di resistenza
A30: flessione | B30: fm,k | C30: MPa | D30: 22 | E30: 24 | F30: 28 | G30: 22 | H30: 24 | I30: 28 | J30: 14 | K30: 16 | L30: 18 | M30: 20 | N30: 22 | O30: 24 | P30: 27 | Q30: 30 | R30: flessione | T30: fm,k | U30: MPa
A31: traz. parallela alle fibre | B31: ft,0,k | C31: MPa | D31: 16 | E31: 17 | F31: 19.5 | G31: 17.6 | H31: 19.2 | I31: 22.3 | J31: 7.2 | K31: 8.5 | L31: 10 | M31: 11.5 | N31: 13 | O31: 14.5 | P31: 16.5 | Q31: 19 | R31: traz. parallela alle fibre | T31: ft,0,k | U31: MPa
A32: traz. ortog. alle fibre | B32: ft,90,k | C32: MPa | D32: 0.5 | E32: 0.5 | F32: 0.5 | G32: 0.5 | H32: 0.5 | I32: 0.5 | J32: 0.4 | K32: 0.4 | L32: 0.4 | M32: 0.4 | N32: 0.4 | O32: 0.4 | P32: 0.4 | Q32: 0.4 | R32: traz. ortog. alle fibre | T32: ft,90,k | U32: MPa
A33: compr. parallela alle fibre | B33: fc,0,k | C33: MPa | D33: 20 | E33: 21.5 | F33: 24 | G33: 22 | H33: 24 | I33: 28 | J33: 16 | K33: 17 | L33: 18 | M33: 19 | N33: 20 | O33: 21 | P33: 22 | Q33: 24 | R33: compr. parallela alle fibre | T33: fc,0,k | U33: MPa
A34: compr. ortog. alle fibre | B34: fc,90,k | C34: MPa | D34: 2.5 | E34: 2.5 | F34: 2.5 | G34: 2.5 | H34: 2.5 | I34: 2.5 | J34: 2 | K34: 2.2 | L34: 2.2 | M34: 2.3 | N34: 2.4 | O34: 2.5 | P34: 2.5 | Q34: 2.7 | R34: compr. ortog. alle fibre | T34: fc,90,k | U34: MPa
A35: taglio | B35: fv,k | C35: MPa | D35: 3.5 | E35: 3.5 | F35: 3.5 | G35: 3.5 | H35: 3.5 | I35: 3.5 | J35: 3 | K35: 3.2 | L35: 3.4 | M35: 3.6 | N35: 3.8 | O35: 4 | P35: 4 | Q35: 4 | R35: taglio | T35: fv,k | U35: MPa
A36: massa volumica 5% | B36: ρk | C36: kg/m3 | D36: 355 | E36: 365 | F36: 390 | G36: 370 | H36: 385 | I36: 425 | J36: 290 | K36: 310 | L36: 320 | M36: 330 | N36: 340 | O36: 350 | P36: 360 | Q36: 380 | R36: taglio | T36: fv,k | U36: MPa
A37: massa volumica media | B37: ρmean | C37: kg/m3 | D37: 390 | E37: 400 | F37: 420 | G37: 410 | H37: 420 | I37: 460 | J37: 350 | K37: 370 | L37: 380 | M37: 400 | N37: 410 | O37: 420 | P37: 430 | Q37: 460 | R37: taglio | T37: fv,k | U37: MPa
B39: EC1995-2014 | D39: NTC2018
A40: Materiale | B40: gM,legno Colonna A | C40: gM,legno Colonna B | D40: gM,legno Colonna A | E40: gM,legno Colonna B | F40: kcr
A41: LEGNO LAMELLARE GL 22c | B41: 1.25 | C41: 1.25 | D41: 1.45 | E41: 1.35 | F41: 0.67
A42: LEGNO LAMELLARE GL 24c | B42: 1.25 | C42: 1.25 | D42: 1.45 | E42: 1.35 | F42: 0.67
A43: LEGNO LAMELLARE GL 28c | B43: 1.25 | C43: 1.25 | D43: 1.45 | E43: 1.35 | F43: 0.67
A44: LEGNO LAMELLARE GL 22h | B44: 1.25 | C44: 1.25 | D44: 1.45 | E44: 1.35 | F44: 0.67
A45: LEGNO LAMELLARE GL 24h | B45: 1.25 | C45: 1.25 | D45: 1.45 | E45: 1.35 | F45: 0.67
A46: LEGNO LAMELLARE GL 28h | B46: 1.25 | C46: 1.25 | D46: 1.45 | E46: 1.35 | F46: 0.67
A47: LEGNO MASSICCIO C 14 | B47: 1.3 | C47: 1.3 | D47: 1.5 | E47: 1.45 | F47: 0.67
A48: LEGNO MASSICCIO C 16 | B48: 1.3 | C48: 1.3 | D48: 1.5 | E48: 1.45 | F48: 0.67
A49: LEGNO MASSICCIO C 18 | B49: 1.3 | C49: 1.3 | D49: 1.5 | E49: 1.45 | F49: 0.67
A50: LEGNO MASSICCIO C 20 | B50: 1.3 | C50: 1.3 | D50: 1.5 | E50: 1.45 | F50: 0.67
A51: LEGNO MASSICCIO C 22 | B51: 1.3 | C51: 1.3 | D51: 1.5 | E51: 1.45 | F51: 0.67
A52: LEGNO MASSICCIO C 24 | B52: 1.3 | C52: 1.3 | D52: 1.5 | E52: 1.45 | F52: 0.67
A53: LEGNO MASSICCIO C 27 | B53: 1.3 | C53: 1.3 | D53: 1.5 | E53: 1.45 | F53: 0.67
A54: LEGNO MASSICCIO C 30 | B54: 1.3 | C54: 1.3 | D54: 1.5 | E54: 1.45 | F54: 0.67
A55: CONNESSIONE | B55: 1.3 | C55: 1.3 | D55: 1.5 | E55: 1.4
A56: CONNESSIONE - γ M1 | B56: 1.1 | D56: 1.05
A57: CONNESSIONE - γ M2 | B57: 1.25 | D57: 1.25
A60: Valori di kmod per legno massiccio e legno lamellare
B61: Classe di servizio
A62: Durata del carico | B62: 1 | C62: 2 | D62: 3
A63: =F3 -> Permanente | B63: 0.6 | C63: 0.6 | D63: 0.5
A64: =F4 -> Lunga durata | B64: 0.7 | C64: 0.7 | D64: 0.55
A65: =F5 -> Media durata | B65: 0.8 | C65: 0.8 | D65: 0.65
A66: =F6 -> Breve durata | B66: 0.9 | C66: 0.9 | D66: 0.7
A67: =F7 -> Istantaneo | B67: 1.1 | C67: 1.1 | D67: 0.9
A70: CONNETTORI
A71: CODICE | C71: GWZ6140 | D71: GWZ6160 | E71: GWZ6180 | F71: GWZ6200 | G71: GWZ6220 | H71: GWZ8200 | I71: GWZ8220 | J71: GWZ8240 | K71: GWZ8260 | L71: GWZ8280 | M71: GWZ8300 | N71: GWZ8320 | O71: GWZ8340 | P71: GWZ8360 | Q71: GWZ8380 | R71: GWZ8400
A72: d1 | B72: mm | C72: 6 | D72: 6 | E72: 6 | F72: 6 | G72: 6 | H72: 8 | I72: 8 | J72: 8 | K72: 8 | L72: 8 | M72: 8 | N72: 8 | O72: 8 | P72: 8 | Q72: 8 | R72: 8
A73: L | B73: mm | C73: 140 | D73: 160 | E73: 180 | F73: 200 | G73: 220 | H73: 200 | I73: 220 | J73: 240 | K73: 260 | L73: 280 | M73: 300 | N73: 320 | O73: 340 | P73: 360 | Q73: 380 | R73: 400
A74: sg | B74: mm | C74: =C73-10 -> 130 | D74: =D73-10 -> 150 | E74: 170 | F74: 190 | G74: 210 | H74: 190 | I74: 210 | J74: 230 | K74: 250 | L74: 270 | M74: 290 | N74: =N73-10 -> 310 | O74: 330 | P74: =P73-10 -> 350 | Q74: 370 | R74: 390
A75: d2 | B75: mm | C75: 4 | D75: 4 | E75: 4 | F75: 4 | G75: 4 | H75: 5.2 | I75: 5.2 | J75: 5.2 | K75: 5.2 | L75: 5.2 | M75: 5.2 | N75: 5.2 | O75: 5.2 | P75: 5.2 | Q75: 5.2 | R75: 5.2
A76: dk | B76: mm | C76: 8 | D76: 8 | E76: 8 | F76: 8 | G76: 8 | H76: 11 | I76: 11 | J76: 11 | K76: 11 | L76: 11 | M76: 11 | N76: 11 | O76: 11 | P76: 11 | Q76: 11 | R76: 11
A77: fax,k | B77: N/mm2 | C77: 11 | D77: 11 | E77: 11 | F77: 11 | G77: 11 | H77: 11 | I77: 11 | J77: 11 | K77: 11 | L77: 11 | M77: 11 | N77: 11 | O77: 11 | P77: 11 | Q77: 11 | R77: 11
A78: ρa,ax | B78: kg/m3 | C78: 350 | D78: 350 | E78: 350 | F78: 350 | G78: 350 | H78: 350 | I78: 350 | J78: 350 | K78: 350 | L78: 350 | M78: 350 | N78: 350 | O78: 350 | P78: 350 | Q78: 350 | R78: 350
A79: ftens,k | B79: kN | C79: 12 | D79: 12 | E79: 12 | F79: 12 | G79: 12 | H79: 21 | I79: 21 | J79: 21 | K79: 21 | L79: 21 | M79: 21 | N79: 21 | O79: 21 | P79: 21 | Q79: 21 | R79: 21
A80: fy,k | B80: N/mm2 | C80: 1000 | D80: 1000 | E80: 1000 | F80: 1000 | G80: 1000 | H80: 1000 | I80: 1000 | J80: 1000 | K80: 1000 | L80: 1000 | M80: 1000 | N80: 1000 | O80: 1000 | P80: 1000 | Q80: 1000 | R80: 1000
A81: Ø CALCOLO | B81: mm | C81: 6 | D81: 6 | E81: 6 | F81: 6 | G81: 6 | H81: 8 | I81: 8 | J81: 8 | K81: 8 | L81: 8 | M81: 8 | N81: 8 | O81: 8 | P81: 8 | Q81: 8 | R81: 8
A84: Valori minimi impostati sulle celle iniziali, il controllo specifico viene fatto dopo | B84: B NT,min | C84: H NT,min | D84: β NT,max | E84: α NT,min | G84: Ø min
B85: =2*(G85*H88)+H89*G85 -> 57 | C85: =MIN(F95:F110) -> 120 | D85: =45-E85 -> 15 | E85: 30 | G85: =MIN(C72:R72) -> 6
B87: Valori da utilizzare per ottenere la lunghezza efficace filetto | G87: Distanze minime
B88: testa/punta [mm] | D88: 10 | G88: a2,CG,MIN | H88: 4 | I88: =H88*INDEX(DATA!$C$72:$R$72,$B$124) -> 32 | J88: mm
B89: toll. Centrale [mm] | D89: =5+5 -> 10 | G89: aCROSS,MIN | H89: 1.5 | I89: =H89*INDEX(DATA!$C$72:$R$72,$B$124) -> 12 | J89: mm
G90: a2,MIN | H90: 5 | I90: =H90*INDEX(DATA!$C$72:$R$72,$B$124) -> 40 | J90: mm
B91: Coprilegno | D91: 12 | G91: eMIN | H91: 3.5 | I91: =H91*INDEX(DATA!$C$72:$R$72,$B$124) -> 28 | J91: mm
B94: Codici | C94: L | D94: Sg HT,min | E94: Sg NT,min | F94: H NT,min | G94: toll,HT | H94: L HT,m | I94: L NT,m
A95: 1 | B95: GWZ6140 | C95: 140 | D95: 40 | E95: 70 | F95: 120 | G95: 3 | H95: =D95+$D$88+G95 -> 53 | I95: =E95+$D$88+($D$89-G95) -> 87
A96: 2 | B96: GWZ6160 | C96: 160 | D96: 60 | E96: 70 | F96: 135 | G96: 3 | H96: =D96+$D$88+G96 -> 73 | I96: =E96+$D$88+($D$89-G96) -> 87
A97: 3 | B97: GWZ6180 | C97: 180 | D97: 75 | E97: 75 | F97: 150 | G97: 5 | H97: =D97+$D$88+G97 -> 90 | I97: =E97+$D$88+($D$89-G97) -> 90
A98: 4 | B98: GWZ6200 | C98: 200 | D98: 85 | E98: 85 | F98: 160 | G98: 5 | H98: 100 | I98: 100
A99: 5 | B99: GWZ8200 | C99: 200 | D99: 65 | E99: 105 | F99: 165 | G99: 3 | H99: =D99+$D$88+G99 -> 78 | I99: =E99+$D$88+($D$89-G99) -> 122
A100: 6 | B100: GWZ6220 | C100: 220 | D100: 95 | E100: 95 | F100: 175 | G100: 5 | H100: =D100+$D$88+G100 -> 110 | I100: =E100+$D$88+($D$89-G100) -> 110
A101: 7 | B101: GWZ8220 | C101: 220 | D101: 85 | E101: 105 | F101: 175 | G101: 3 | H101: 98 | I101: 122
A102: 8 | B102: GWZ8240 | C102: 240 | D102: 105 | E102: 105 | F102: 190 | G102: 5 | H102: 120 | I102: 120
A103: 9 | B103: GWZ8260 | C103: 260 | D103: 115 | E103: 115 | F103: 205 | G103: 5 | H103: 130 | I103: 130
A104: 10 | B104: GWZ8280 | C104: 280 | D104: 125 | E104: 125 | F104: 220 | G104: 5 | H104: 140 | I104: 140
A105: 11 | B105: GWZ8300 | C105: 300 | D105: 135 | E105: 135 | F105: 235 | G105: 5 | H105: 150 | I105: 150
A106: 12 | B106: GWZ8320 | C106: 320 | D106: 145 | E106: 145 | F106: 250 | G106: 5 | H106: =D106+$D$88+G106 -> 160 | I106: =E106+$D$88+($D$89-G106) -> 160
A107: 13 | B107: GWZ8340 | C107: 340 | D107: 155 | E107: 155 | F107: 260 | G107: 5 | H107: =D107+$D$88+G107 -> 170 | I107: =E107+$D$88+($D$89-G107) -> 170
A108: 14 | B108: GWZ8360 | C108: 360 | D108: 165 | E108: 165 | F108: 275 | G108: 5 | H108: 180 | I108: 180
A109: 15 | B109: GWZ8380 | C109: 380 | D109: 175 | E109: 175 | F109: 290 | G109: 5 | H109: 190 | I109: 190
A110: 16 | B110: GWZ8400 | C110: 400 | D110: 185 | E110: 185 | F110: 305 | G110: 5 | H110: 200 | I110: 200
A112: 17 | B112: GWZ6100 | C112: questi codici, seppure presenti a catalogo, risultano esclusi dal foglio di calcolo perché non rispettano le distanze minime dalla testa della trave (non sono presenti neppure sulla tabella a catalogo dove è riportata la connessione principale/secondaria)
A113: 18 | B113: GWZ6120
A114: 19 | B114: GWZ8120
A115: 20 | B115: GWZ8140
A116: 21 | B116: GWZ8160
A117: 22 | B117: GWZ8180
A119: Angolo di inserimento | B119: 45
A120: Angolo di inclinazione | B120: =REPORT!G41 -> 0
G121: β = 0° | L121: β > 0°
C122: testa proiettata lungo la vite | D122: m HT senza testa | E122: m HT CON testa | F122: f HT ? | G122: f HT REPORT | H122: m HT REPORT | I122: B HT,min REPORT | J122: H HT,min REPORT | L122: Delta m (verticale) | M122: f HT REPORT | N122: m HT REPORT | O122: B HT,min REPORT | P122: H HT,min REPORT
A123: Vite scelta | B123: =INDEX(B95:B110,B124) -> GWZ8240 | C123: =INDEX(DATA!C76:R76,B124)/2*(COS(B119*PI()/180)) -> 3.889087297 | D123: =INDEX(DATA!H95:H110,B124)*(COS(B119*PI()/180)) -> 84.85281374 | E123: =C123+D123 -> 88.74190104 | F123: =IF(E123=E128,"no","v") -> no | G123: =IF(D123=D128,0,(E128-D123)/COS(RADIANS(B119))) -> 0 | H123: =MAX(E123,E128) -> 88.74190104 | I123: =E123+D91 -> 100.741901 | J123: =E123+E128+D91 -> 189.4838021 | L123: =N128*SIN(RADIANS($L$128)) -> 0 | M123: =G123+L123/COS(RADIANS(B119)) -> 0 | N123: =H123+L123 -> 88.74190104 | O123: =E123+D91 -> 100.741901 | P123: =E123+E128+D91+L123 -> 189.4838021
B124: =REPORT!A51 -> 8
A125: Coppie | B125: =REPORT!A52 -> 1
A126: Posizionamento | B126: =REPORT!A54 -> 1 | D126: β = 0° | L126: β > 0°
C127: b NT | D127: m NT senza testa | E127: m NT CON testa | F127: ingombro in altezza di due viti | G127: altezza minima trave NT | H127: m NT REPORT | I127: b NT,min REPORT | J127: h NT,min REPORT | L127: β | M127: m NT senza testa | N127: m NT CON testa | O127: m NT REPORT | P127: b NT,min REPORT | Q127: h NT,min REPORT
C128: =REPORT!G39 -> 120 | D128: =INDEX(DATA!I95:I110,B124)*(COS(B119*PI()/180)) -> 84.85281374 | E128: =C123+D128 -> 88.74190104 | F128: =E128+D128+C123 -> 177.4838021 | G128: =F128+D91 -> 189.4838021 | H128: =E128 -> 88.74190104 | I128: =I88*2+I89+(B125-1)*I90 -> 76 | J128: =G128 -> 189.4838021 | L128: =B120 -> 0 | M128: =D128/COS(RADIANS($L$128)) -> 84.85281374 | N128: =E128/COS(RADIANS($L$128)) -> 88.74190104 | O128: =N128 -> 88.74190104 | P128: =I88*2+I89+(B125-1)*I90 -> 76 | Q128: =J128/COS(RADIANS($L$128)) -> 189.4838021
E130: 1 coppia | G130: > 1 coppia | I130: =INDEX($H$139:$I$141,B125,B126) -> 1
E131: Viti interne | F131: Viti esterne | G131: Viti interne | H131: Viti esterne | I131: Distanze fra le viti
D132: a2,CG | E132: =(C128-E133)/2 -> 54 | F132: =I88 -> 32 | G132: =(C128-G133-(B125-1)*G134)/2 -> 54 | H132: =I88 -> 32 | I132: =INDEX($E132:$H132,$I$130) -> 54
D133: aCROSS | E133: =I89 -> 12 | F133: =(C128-F132)/2 -> 44 | G133: =I89 -> 12 | H133: =I89 -> 12 | I133: =INDEX($E133:$H133,$I$130) -> 12
D134: a2 | E134: 0 | F134: 0 | G134: =I90 -> 40 | H134: =(C128-2*H132-H133)/(B125-1) ->  | I134: =INDEX($E134:$H134,$I$130) -> 0
D135: e | E135: 0 | F135: 0 | G135: =I91 -> 28 | H135: =H134-H133 ->  | I135: =INDEX($E135:$H135,$I$130) -> 0
H137: posizionamento
H138: 1 | I138: 2
F139: coppie | G139: 1 | H139: 1 | I139: 2
G140: 2 | H140: 3 | I140: 4
G141: 3 | H141: 3 | I141: 4
A144: MODIFICHE APPORTATE (V1-02) (06/2021) (poi emessa 06/2022) 0. Inserite nuove misure di viti (6x180-200-220) (8x340-360-380-400) 1. Eliminate alcune righe superflue (es. parametri legno) 2. Inseriti coefficienti per verifica lato acciaio (con relative traduzioni) 3. Inserito calcolo resistenza di progetto ad instabilità e a trazione (cfr. con resistenza assiale) (con relative traduzioni) 4. Invertite nell'elenco 8x200 e 6x220 per garantire correttezza sulla scelta H trave (altrimenti con H = 170 nell'elenco compariva anche 6x220) 5. Aggiustati di conseguenza le impaginazioni e le impostazioni di stampa

Sheet IMMAGINI (hidden)
K1: =TRADUZIONI!C1 -> Italiano | L1: =TRADUZIONI!D1 -> English | M1: =TRADUZIONI!E1 -> Deutsch | N1: =TRADUZIONI!F1 -> Française | O1: =TRADUZIONI!G1 -> Español | P1: =TRADUZIONI!H1 -> Português
J2: LINGUE
A4: D45A90F0a | D4: D45C1
A5: D45A90F1b | D5: D45C2
A6: D45A80F1a | D6: D45C3
A7: D45A80F1b
A8: (8 spazi sopra / 8 spazi a destra)
A12: INTERNE
A13: ESTERNE
A14: (10 spazi sopra / 10 spazi a destra)

Sheet INFO VERS. (hidden)
B1: NOTE PER LA COMPILAZIONE:
B2: Ogni modifica va segnata nell'elenco sottostante, andando SEMPRE ad indicare dove e cosa si è modificato
B3: Qualora la modifica comporti un cambio di revisione, la stessa dovrà essere indicata SIA su questo foglio che nel nome del Software che all'inizio di "LICENSE" (in automatico si aggiona su "REPORT").
B6: VERSIONE | C6: REV. | D6: DATA | E6: MODIFICA | F6: CELLE | G6: RESP | H6: DATA CARICAMENTO PORTALE | I6: Note
B7: vers.1.01 | C7: 00 | D7: 2020-07-07 | E7: Prima emissione - software reso disponibile a clienti HT (non sul sito) | F7: tutte | G7: CL | H7: 2020-09-11
B8: vers.1.02 | C8: 00 | D8: 2022-06-15 | E8: Integrate le nuove misure di viti GWZ, inserito controllo anche su instabilità e trazione. Questa versione viene caricata direttamente sul nuovo sito HT. | F8: tutte | G8: CL | H8: 2022-06-15
E9: 0. Inserite nuove misure di viti (6x180-200-220) (8x340-360-380-400)
E10: 1. Eliminate alcune righe superflue (es. parametri legno)
E11: 2. Inseriti coefficienti per verifica lato acciaio (con relative traduzioni)
E12: 3. Inserito calcolo resistenza di progetto ad instabilità e a trazione (cfr. con resistenza assiale) (con relative traduzioni)
E13: 4. Invertite nell'elenco 8x200 e 6x220 per garantire correttezza sulla scelta H trave (altrimenti con H = 170 nell'elenco compariva anche 6x220)
E14: 5. Aggiustati di conseguenza le impaginazioni e le impostazioni di stampa
B15: vers.1.02 | C15: 01 | D15: 2022-09-07 | E15: Aggiornati i link per la policy sulla privacy Modificata la formula in "LICENSE" perché non rimandava al link ma alla formula. | F15: TRADUZIONI_LICENSE | G15: CL | H15: 2022-09-07
